Cogmind - Beta 12 X1 *** ADVENTURER MODE // 2022.07.16 @ 21:28:29 Player: Owlsley Result: Escaped! Performance ------------- Evolutions (9) 4500 Regions Visited (34) 6800 Robots Destroyed (296) 1480 Value Destroyed (12195) 12195 Prototype IDs (62) 1240 Alien Tech Used (3) 600 Bonus (27973) 27973 TOTAL SCORE: 54788 Bonus ------- High Alert Combat Kills 907 Follower Combat Kills 5385 Network Hubs Disabled 200 Met Data Miner 300 Met Imprinter 300 Was Imprinted 300 Met Zhirov 300 Built Enhanced Grunts 300 A7 Reached Mainframe 300 Scanned by Researcher 500 Acquired SGEMP 2000 Delivered SGEMP 2000 Destroyed MAIN.C Guards 500 Met MAIN.C 5000 Hacked MAIN.C 300 Destroyed MAIN.C Shell 5000 Zhirov Destroyed MAIN.C 3000 Win 3000 Friendly Fire -1619 Cogmind --------- Core Integrity 1346/1600 Matter 280/300 Energy 435/440 System Corruption 7% Temperature Cool (10) Movement Hovering (104) Ox1 Location To Epsilon Eridani Parts ------- > --- POWER (2) -------- Quantum Reactor Light Quantum Reactor > --- PROPULSION (7) --- Improved Antigrav System Improved Antigrav System Improved Antigrav System Improved Antigrav System Improved Antigrav System > --- UTILITY (15) ----- Experimental Optical Array Advanced Target Analyzer Advanced Target Analyzer Improved Armor Integrity Analyzer Advanced Particle Charger Advanced Transmission Jammer SHELL Armor Graphene Brace Experimental Focal Shield Advanced Thermal Shield Experimental Shock Absorption System Antimissile System > --- WEAPON (2) ------- Hypervelocity Railgun > --- INVENTORY (5) ---- Light Quantum Reactor Light Quantum Reactor Warp Gun Potential Cannon Peak State ------------ > --- POWER ------------ Light Quantum Reactor Light Quantum Reactor > --- PROPULSION ------- Improved Antigrav System Improved Antigrav System Improved Antigrav System Antigrav Array Antigrav Array > --- UTILITY ---------- Experimental Optical Array Long-range Sensor Array Advanced Target Analyzer Improved Armor Integrity Analyzer Advanced Transmission Jammer Advanced Phase Shifter SHELL Armor Graphene Brace Experimental Focal Shield Advanced Thermal Shield Experimental Shock Absorption System Advanced Hacking Suite Advanced Hacking Suite > --- WEAPON ----------- Multirail CR-A16's Behemoth Slayer > --- INVENTORY -------- Light Quantum Reactor Improved Antigrav System Warp Gun Potential Cannon [Rating: 217] Favorites ----------- Power Light Nuclear Core Engine Cooled Ion Engine Power Core Light Nuclear Core Reactor Fusion Reactor Propulsion Combat Airjet Treads Improved Treads Leg Aluminum Leg Hover Unit Combat Airjet Utility Advanced Hacking Suite Device Advanced Transmission Jammer Storage Large Storage Unit Processor Improved Signal Interpreter Hackware Advanced Hacking Suite Protection Light Armor Plating Weapon Advanced KE Penetrator Energy Gun Cooled Phase Gun Energy Cannon Light EM Pulse Cannon Ballistic Gun Advanced KE Penetrator Ballistic Cannon Compact Mass Driver Launcher Mini Grenade Launcher Special Weapon Advanced Remote Datajack Impact Weapon Great Maul Piercing Weapon CR-A16's Behemoth Slayer Special Melee Weapon Advanced Datajack Build | -11 -10 -10 -9 -9 -8 -7 -7 -7 -7 -7 -7 -6 -6 -6 -6 -6 -6 -6 -5 -5 -5 -5 -5 -4 -4 -4 -4 -4 -4 -3 -2 -2 -1 -1 ------- Run | Scr Mat Min Mat Sto Mat Fac Was Fac Low Low Dat Pro Fac Was Fac Low Low Zio Pro Fac Upp Upp Zhi Pro Fac Ext Cet Arc Hub Res Res Tes Acc Com Slots Evolved 18 | . . . 2 . 2 2 . . . . . . 2 . . . . . . 2 . . . . 2 . . . . 2 2 . 2 . Power 1 | . . . . . . . . . . . . . . . . . . . . . . . . . 1 . . . . . . . . . Propulsion 4 | . . . 1 . 1 . . . . . . . . . . . . . . . . . . . 1 . . . . . . . 1 . Utility 13 | . . . 1 . 1 2 . . . . . . 2 . . . . . . 2 . . . . . . . . . 2 2 . 1 . Weapon . | . . . . . . . . . . . . . . . . . . . . . . . . . . . . . . . . . . . Parts Attached 394 | 3 10 . 12 21 24 12 2 60 7 2 1 5 9 1 22 . 2 4 6 21 10 3 7 8 18 10 3 1 6 15 9 44 7 29 Power 35 | . 2 . 2 2 1 . . 4 1 . . 1 . . . . . 1 . 1 . . 1 . 4 1 . . . 2 . 5 2 5 Engine 5 | . 1 . . 2 . . . 1 . . . . . . . . . 1 . . . . . . . . . . . . . . . . Core 13 | . 1 . 2 . 1 . . 3 1 . . 1 . . . . . . . 1 . . . . 2 . . . . . . 1 . . Reactor 17 | . . . . . . . . . . . . . . . . . . . . . . . 1 . 2 1 . . . 2 . 4 2 5 Propulsion 82 | 2 2 . 4 1 9 5 . 16 2 . . 1 1 . 6 . . . . 1 1 . . 1 7 3 . . 3 1 . 3 1 12 Treads 29 | 2 2 . 4 1 9 . . 9 . . . . . . . . . . . . . . . . . . . . . . . . . 2 Leg . | . . . . . . . . . . . . . . . . . . . . . . . . . . . . . . . . . . . Wheel . | . . . . . . . . . . . . . . . . . . . . . . . . . . . . . . . . . . . Hover 53 | . . . . . . 5 . 7 2 . . 1 1 . 6 . . . . 1 1 . . 1 7 3 . . 3 1 . 3 1 10 Flight . | . . . . . . . . . . . . . . . . . . . . . . . . . . . . . . . . . . . Utility 139 | 1 2 . 2 4 7 6 . 12 2 2 . . 6 . 11 . 1 3 2 17 7 1 4 3 4 4 1 1 1 5 3 20 2 5 Device 77 | 1 . . 1 . 1 2 . 3 2 2 . . 3 . 5 . . 3 2 14 5 1 2 1 1 4 1 1 . 2 3 12 2 3 Storage 5 | . 1 . . . . 1 . 1 . . . . 1 . . . . . . . . . . . . . . . . 1 . . . . Processor 12 | . . . . 1 . 2 . 1 . . . . . . 1 . . . . 1 1 . . . 1 . . . . . . 2 . 2 Hackware 14 | . . . . . . 1 . 3 . . . . . . 2 . 1 . . 2 1 . 1 1 1 . . . . 1 . . . . Protection 31 | . 1 . 1 3 6 . . 4 . . . . 2 . 3 . . . . . . . 1 1 1 . . . 1 1 . 6 . . Artifact . | . . . . . . . . . . . . . . . . . . . . . . . . . . . . . . . . . . . Weapon 138 | . 4 . 4 14 7 1 2 28 2 . 1 3 2 1 5 . 1 . 4 2 2 2 2 4 3 2 2 . 2 7 6 16 2 7 Energy Gun 31 | . . . . . 1 . . 3 1 . 1 1 1 1 2 . 1 . 3 1 1 1 1 . 1 1 . . . . . 5 1 4 Energy Cannon 13 | . 2 . 2 6 . . . 2 . . . . . . . . . . . . . . . . . . . . . . . 1 . . Ballistic Gun 52 | . 2 . 2 3 5 . . 16 . . . 1 1 . . . . . . . . . . 2 2 . 2 . . 4 3 7 . 2 Ballistic Cannon 1 | . . . . . . . . . . . . . . . . . . . . . . . . . . . . . . . . 1 . . Launcher 20 | . . . . 3 1 1 2 6 1 . . 1 . . 1 . . . . . . . 1 1 . . . . 1 . 1 . . . Special Weapon 1 | . . . . . . . . . . . . . . . . . . . . . . . . . . . . . . . . . . 1 Impact Weapon 5 | . . . . 2 . . . 1 . . . . . . 2 . . . . . . . . . . . . . . . . . . . Slashing Weapon . | . . . . . . . . . . . . . . . . . . . . . . . . . . . . . . . . . . . Piercing Weapon 14 | . . . . . . . . . . . . . . . . . . . 1 1 1 1 . 1 . 1 . . . 3 2 2 1 . Special Melee Weapon 1 | . . . . . . . . . . . . . . . . . . . . . . . . . . . . . 1 . . . . . Unidentified Prototypes 33 | . . . . 4 1 . . 5 . . . . . . . . . 1 . . 1 . 3 . 1 . 1 . 4 . . 11 . 1 Corrupted Parts 3 | . . . . . . . . . . . . . . . . . . . . . . . . . . . 1 . . . . 2 . . System Corruption 16 | . . . . . . . . . . . . . . . . . . . . . . . . . . . 2 . . . . 14 . . Parts Lost 33 | . 1 . . . 3 . . 10 1 . . 1 . . 2 . 1 . . . 1 . . . 3 . . . 1 . . 3 . 6 Power 3 | . . . . . . . . 2 . . . . . . . . . . . . . . . . . . . . . . . 1 . . Propulsion 9 | . . . . . . . . 4 . . . . . . 1 . . . . . . . . . 2 . . . . . . . . 2 Utility 12 | . 1 . . . 2 . . 1 1 . . . . . . . 1 . . . 1 . . . 1 . . . . . . 1 . 3 Weapon 9 | . . . . . 1 . . 3 . . . 1 . . 1 . . . . . . . . . . . . . 1 . . 1 . 1 Highest Loss Streak 4 | . 1 . . . 1 . . 3 1 . . 1 . . 1 . 1 . . . 1 . . . 1 . . . 1 . . 1 . 4 To Critical Strikes . | . . . . . . . . . . . . . . . . . . . . . . . . . . . . . . . . . . . Average Slot Usage (%) 94 | . 98 100 96 100 99 92 100 95 99 100 92 98 91 98 95 93 92 93 92 93 93 94 84 93 90 93 92 94 93 91 91 89 80 81 Engine 1 | . 4 . . 3 8 . . . 2 . . . . . . . . 3 6 1 . . . . . . . . . . . . . . Core 4 | . 9 14 10 7 . 7 7 6 4 7 7 7 6 6 6 6 6 2 . 3 5 5 2 . 3 3 . . . . . . . . Reactor 2 | . . . . . . . . . . . . . . . . . . . . . . . 2 5 5 6 10 10 10 9 8 7 5 6 Treads 12 | . 28 28 32 33 35 12 . 18 . . . . . . . . . . . . . . . . . . . . . . . . . . Hover 15 | . . . . . . 17 30 8 30 30 30 30 26 26 25 26 26 26 26 23 23 27 27 27 27 30 30 30 30 23 20 17 19 20 Device 12 | . 5 . 10 5 2 3 7 3 6 7 7 7 12 13 16 20 20 20 19 27 22 22 19 19 15 11 18 19 15 17 25 25 19 24 Storage 7 | . 14 14 11 11 9 6 7 7 7 7 7 7 4 6 6 6 6 6 6 5 5 5 5 5 5 5 5 5 5 4 4 4 3 . Processor 10 | . . . . 5 9 15 23 23 23 23 23 23 20 20 16 13 8 6 6 5 11 11 11 11 13 14 10 10 10 9 8 10 11 13 Hackware 6 | . . . . . . 4 7 7 7 7 7 7 6 6 6 6 10 13 13 11 11 11 11 11 10 10 10 10 10 12 12 8 7 2 Protection 5 | . 8 14 10 11 15 7 . 2 . . . . 3 6 1 . . . . . . . 1 2 1 4 . . 3 4 4 5 3 3 Energy Gun 1 | . 2 . . . . . . . 4 7 . 5 10 11 4 . 3 6 5 5 4 4 . 1 . 3 . . . . . . 1 2 Energy Cannon 3 | . 11 14 9 15 2 . . . . . . . . . . . . . . . . . . . . . . . . . . . . . Ballistic Gun 7 | . 13 14 11 6 15 11 7 12 . . . 4 . . . . . . . . . . . 2 5 5 9 10 6 8 7 6 3 2 Launcher 1 | . . . . . . 3 7 . 2 . . 1 . . 4 6 6 6 6 5 5 5 . 4 4 . . . 1 . . . . . Naked Turns . | . . . . . . . . . . . . . . . . . . . . . . . . . . . . . . . . . . . Heaviest Build 97 | 14 55 55 57 58 68 64 22 47 46 36 36 39 45 43 48 46 48 48 46 48 48 47 54 58 69 70 74 71 71 72 76 78 88 97 Greatest Support 100 | 40 46 46 69 69 92 80 29 80 48 40 40 40 45 45 48 48 48 48 48 48 59 48 59 59 71 70 70 70 74 78 78 78 88 100 Greatest Overweight (x) 2 | . 1 1 2 . . . . 1 . . . 1 . . 1 . . . . 1 . . . . 1 . 1 1 1 . . 2 . 1 Average Overweight (x) . | . . 1 . . . . . . . . . . . . . . . . . . . . . . . . . . . . . . . . Largest Inventory Capacity 20 | 8 20 20 20 20 20 20 8 15 15 15 15 15 15 15 15 15 15 15 15 15 15 15 15 15 15 15 15 15 15 15 8 8 8 8 Average Capacity 15 | 8 15 20 20 20 20 12 8 13 15 15 15 15 12 15 15 15 15 15 15 15 15 15 15 15 15 15 15 15 15 8 8 8 8 5 Most Carried 20 | 7 20 20 20 20 20 20 8 15 15 15 15 15 15 15 15 15 15 15 15 15 15 15 15 15 15 15 15 15 15 14 8 8 8 8 Average Carried 14 | 6 10 19 19 19 19 12 8 11 14 15 15 14 11 14 14 15 14 14 15 14 14 14 14 14 14 14 14 15 14 7 7 7 7 5 Final Capacity 20 | 8 20 20 20 20 20 8 8 15 15 15 15 15 15 15 15 15 15 15 15 15 15 15 15 15 15 15 15 15 15 8 8 8 8 5 Final Carried 20 | 6 20 20 20 20 20 8 8 15 15 15 15 15 15 15 15 15 15 15 15 14 14 15 15 15 13 15 15 15 14 8 8 8 8 5 Class Distribution -------------------- 29% | Mutant 23% | Hacker-Mutant 19% | Hacker-Scout 11% | Commander-Skirmisher 4% | Scavenger-Mutant 3% | Commander-Mutant Dominant Class ---------------- Mutant | -10/Materials Mutant | -10/Mines Mutant | -9/Materials Mutant | -9/Storage Mutant | -8/Materials Scavenger-Scout | -7/Factory Hacker-Scout | -7/Waste Hacker-Mutant | -7/Factory Hacker-Mutant | -7/Lower Caves Hacker-Mutant | -7/Lower Caves Hacker-Mutant | -7/Data Miner Hacker-Mutant | -6/Proximity Caves Hacker-Mutant | -6/Factory Hacker-Mutant | -6/Waste Hacker-Scout | -6/Factory Hacker-Scout | -6/Lower Caves Hacker-Mutant | -6/Lower Caves Hacker-Mutant | -6/Zion Hacker-Mutant | -5/Proximity Caves Hacker-Mutant | -5/Factory Hacker-Scout | -5/Upper Caves Hacker-Scout | -5/Upper Caves Hacker-Scout | -5/Zhirov Hacker-Scout | -4/Proximity Caves Hacker-Scout | -4/Factory Hacker-Scout | -4/Extension Commander-Scout | -4/Cetus Commander-Skirmisher | -4/Archives Commander-Scout | -4/Hub_04(d) Hacker-Scout | -3/Research Hacker-Scout | -2/Research Hacker-Scout | -2/Testing Scavenger-Ninja | -1/Access Scavenger-Mutant | -1/Command Resources | -11 -10 -10 -9 -9 -8 -7 -7 -7 -7 -7 -7 -6 -6 -6 -6 -6 -6 -6 -5 -5 -5 -5 -5 -4 -4 -4 -4 -4 -4 -3 -2 -2 -1 -1 ----------- Run | Scr Mat Min Mat Sto Mat Fac Was Fac Low Low Dat Pro Fac Was Fac Low Low Zio Pro Fac Upp Upp Zhi Pro Fac Ext Cet Arc Hub Res Res Tes Acc Com Matter Collected 8878 | 219 247 18 268 395 928 183 447 1652 147 20 . 87 73 . 183 28 130 25 100 210 98 125 . 230 336 245 141 63 149 94 85 987 128 837 Remotely . | . . . . . . . . . . . . . . . . . . . . . . . . . . . . . . . . . . . Salvage Created 14423 | 77 690 174 473 1653 2359 . 1283 2005 28 . . 44 73 . 436 . 83 . 168 419 50 92 . 231 650 685 44 166 207 94 162 978 100 999 Parts 682 | 5 30 11 25 100 114 . 4 105 3 . . 8 5 . 13 . 4 . 7 20 3 6 . 14 39 26 . 6 11 7 9 56 3 48 Haulers Intercepted 9 | . . . 1 2 3 . . 2 . . . . . . . . . . . 1 . . . . . . . . . . . . . . Recyclers Shooed 15 | . 2 . . . 3 . . 5 . . . . . . . . . . . 3 . . . . 1 1 . . . . . . . . Parts Field Recycled . | . . . . . . . . . . . . . . . . . . . . . . . . . . . . . . . . . . . Retrieved Matter . | . . . . . . . . . . . . . . . . . . . . . . . . . . . . . . . . . . . Parts Self-Destructed 61 | . . . . . . . . . 1 . . 14 . . . . 7 . 6 . 6 18 . 9 . . . . . . . . . . Prevented 5 | . . . . . . . . . . . . . . . . . . . 1 . . 2 . 2 . . . . . . . . . . Kills | -11 -10 -10 -9 -9 -8 -7 -7 -7 -7 -7 -7 -6 -6 -6 -6 -6 -6 -6 -5 -5 -5 -5 -5 -4 -4 -4 -4 -4 -4 -3 -2 -2 -1 -1 ------- Run | Scr Mat Min Mat Sto Mat Fac Was Fac Low Low Dat Pro Fac Was Fac Low Low Zio Pro Fac Upp Upp Zhi Pro Fac Ext Cet Arc Hub Res Res Tes Acc Com Combat Hostiles Destroyed 225 | . 15 4 11 32 37 . 6 35 3 . . 1 1 . 7 . 1 . 5 4 1 1 . 11 10 6 . 1 1 1 5 12 1 13 Melee 2 | . . . . . . . . 1 . . . . . . . . . . . . . . . . . . . . 1 . . . . . Guns 109 | . 6 1 1 8 26 . . 18 . . . 1 1 . 4 . 1 . 1 3 . . . . 6 4 . 1 . . 1 12 1 13 Cannons 44 | . 7 1 7 21 7 . . 1 . . . . . . . . . . . . . . . . . . . . . . . . . . AOE 62 | . 2 2 3 2 4 . 6 15 3 . . . . . 2 . . . 3 1 1 . . 10 4 . . . . . 4 . . . Classes Destroyed 21 | 2 4 . 3 2 1 . 1 2 . . . . . . . . 1 . . . . . . . . . . . . . . 3 . 2 Worker 11 | . . . . . 1 . . 1 . . . . . . . . . . . 1 . . . . 4 . . . 1 . . . . 3 Builder 9 | . 1 . . . 2 . . 3 . . . . . . . . . . . . . . . . 2 . . . 1 . . . . . Tunneler 4 | 1 . . . . . . . 1 . . . . . . . . . . . 1 . . . . 1 . . . . . . . . . Hauler 9 | . . . 1 2 3 . . 2 . . . . . . . . . . . 1 . . . . . . . . . . . . . . Recycler 9 | 1 1 . . . 4 . . 2 . . . . . . . . . . . . . . . . . 1 . . . . . . . . Operator 9 | . . . . 2 2 . . 2 . . . . . . 1 . . . . . . . . . . . . 2 . . . . . . Drone 1 | . . . . . . . . . . . . . . . . . . . . . . . . . . . . . . . . . . 1 Watcher 15 | . 2 . . 1 4 . . 3 . . . . . . 1 . . . . 1 . . . . 1 . 1 . . . . 1 . . Swarmer 51 | . 3 . 3 4 7 . . 10 3 . . . . . . . . . 4 . . . . 10 3 . . . . . 4 . . . Grunt 97 | . 12 4 6 14 23 . . 16 . . . . . . 5 . . . . 2 1 . . . 6 2 . . 1 . . 2 . 3 Brawler 3 | . . . . 3 . . . . . . . . . . . . . . . . . . . . . . . . . . . . . . Duelist 5 | . . . 1 . 1 . . 1 . . . . . . 1 . . . . 1 . . . . . . . . . . . . . . Researcher 1 | . . . . . . . . . . . . . . . . . . . . . . . . . . . . . . . . 1 . . Sentry 26 | . . . 1 11 7 . . 2 . . . . 1 . . . . . . . . . . . 1 . . 1 . . 1 . . 1 Hunter 10 | . . . . . . . . 1 . . . . . . . . . . . 1 . . . . . 1 . . . . . 3 1 3 Programmer 15 | . . . . . . . . 5 . . . 1 . . 1 . . . . . . . . . . 1 . . . . . 4 . 3 Behemoth 7 | . . . . . . . . . . . . . . . . . 1 . 1 . . 1 . 1 . 2 . . . 1 . . . . Compactor 6 | . . . . . . . 6 . . . . . . . . . . . . . . . . . . . . . . . . . . . M Guard 1 | . . . . . . . . . . . . . . . . . . . . . . . . . . . . . . . . . . 1 Combat Programmer 1 | . . . . . . . . . . . . . . . . . . . . . . . . . . . . . . . . . . 1 Striker 2 | . . . . . . . . . . . . . . . . . . . . . . . . . . . . . . . . 2 . . Alpha 7 1 | . . . . . . . . . . . . . . . . . . . . . . . . . . . . . . . . 1 . . Thug 1 | . . . 1 . . . . . . . . . . . . . . . . . . . . . . . . . . . . . . . Guerrilla 1 | . . . . . . . . . . . . . . . . . . . . . . . . . . . . . 1 . . . . . Wizard 1 | . . . . . . . . . . . . . . . . . . . . . . . . . . 1 . . . . . . . . Fireman 2 | . . . . . . . . . . . . . . . . . . . . . . . . . . . . . . . . . . 2 Best Kill Streak 10 | 2 5 4 3 6 6 . 6 7 3 . . 1 1 . 3 . 1 . 4 1 1 1 . 5 10 4 1 2 2 1 5 3 1 4 Combat Bots Only 6 | . 4 4 3 5 5 . 6 4 3 . . 1 1 . 3 . 1 . 4 1 1 1 . 5 3 4 . 1 1 1 5 3 1 4 Max Kills in Single Turn 4 | 1 3 2 3 2 4 . 3 3 2 . . 1 1 . 1 . 1 . 3 1 1 1 . 3 3 1 1 1 3 1 4 1 1 2 Gunslinging . | . . . . . . . . . . . . . . . . . . . . . . . . . . . . . . . . . . . Exploded 4 | . 1 2 3 2 4 . 3 2 2 . . . . . 1 . . . 2 1 1 . . 3 2 . . . . . 4 . . . Melee 1 | . . . . . . . . 1 . . . . . . . . . . . . . . . . . . . . 1 . . . . . Uniques/NPCs Destroyed 1 | . . . . . . . . . . . . . . . . . . . . . . . . . . . . . . . . . . 1 MAIN.C Shell (-1/Command) Combat | -11 -10 -10 -9 -9 -8 -7 -7 -7 -7 -7 -7 -6 -6 -6 -6 -6 -6 -6 -5 -5 -5 -5 -5 -4 -4 -4 -4 -4 -4 -3 -2 -2 -1 -1 -------- Run | Scr Mat Min Mat Sto Mat Fac Was Fac Low Low Dat Pro Fac Was Fac Low Low Zio Pro Fac Upp Upp Zhi Pro Fac Ext Cet Arc Hub Res Res Tes Acc Com Damage Taken 12411 | . 166 36 56 581 1435 41 . 2928 55 . . 296 45 . 407 . 66 . 18 220 187 164 . 132 410 482 54 . 414 143 72 1302 341 2360 Core 1391 | . 21 . 11 70 110 . . 524 . . . 23 12 . 88 . 26 . . . 26 13 . 16 10 36 . . 17 . . 134 . 254 Absorbed by Shields 339 | . . . . . 18 . . . . . . . . . . . . . . . . . . . 36 21 12 . . 36 24 192 . . Redirected to Shielding 92 | . . . . . . . . . . . . . . . . . . . . . . . . 92 . . . . . . . . . . Regen/Repaired (Parts) 1810 | . . . . 127 102 21 . . . . . . . . 53 . . . . . . . . . . . . . . . . 72 141 1294 Core Remaining (%) 82 | 100 . 91 . 79 80 . . . . . . 21 . . . . . . 85 . . . . 94 . . . . 94 100 . 84 . 84 Volleys Fired 774 | 3 34 5 19 72 127 4 8 101 2 . . 2 2 . 17 . 9 . 2 46 8 12 . 6 47 29 6 13 6 4 4 84 6 96 Largest 2 | 2 2 2 2 2 2 2 1 2 1 . . 2 2 . 2 . 1 . 2 1 2 2 . 2 2 2 1 2 1 2 2 2 1 2 Hottest 113 | 60 112 79 112 112 79 46 50 113 30 . . 59 86 . 90 . 30 . 56 30 56 56 . 108 65 59 33 70 35 70 70 90 45 90 Shots Fired 1220 | 6 60 7 33 126 254 8 8 193 3 . . 3 4 . 29 . 8 . 4 46 10 14 . 9 51 45 6 26 6 8 7 133 6 107 Gun 1003 | 6 33 2 19 45 222 8 . 177 . . . 3 4 . 24 . 5 . 2 45 5 12 . 3 46 45 6 26 6 8 6 133 6 106 Cannon 161 | . 27 5 14 80 31 . . 4 . . . . . . . . . . . . . . . . . . . . . . . . . . Launcher 55 | . . . . 1 1 . 8 12 3 . . . . . 5 . 3 . 2 1 5 2 . 6 5 . . . . . 1 . . . Special 1 | . . . . . . . . . . . . . . . . . . . . . . . . . . . . . . . . . . 1 Kinetic 813 | 3 20 2 19 45 222 8 . 174 . . . 1 . . . . . . . . . . . 1 46 30 6 26 6 8 6 111 6 73 Thermal 159 | . . . . . . . . 3 . . . 2 2 . 11 . 5 . 2 45 5 12 . 2 . 15 . . . . . 22 . 33 Explosive 55 | . . . . 1 1 . 8 12 3 . . . . . 5 . 3 . 2 1 5 2 . 6 5 . . . . . 1 . . . Electromagnetic 192 | 3 40 5 14 80 31 . . 4 . . . . 2 . 13 . . . . . . . . . . . . . . . . . . . Robot Hit Streak 64 | 4 21 5 11 33 64 5 14 54 13 . . 16 20 . 38 . 4 . 1 6 4 3 . 1 17 10 2 15 11 2 7 15 7 26 Robot Miss Streak 5 | . 2 2 1 1 2 1 3 2 . . . . . . 1 . 1 . 2 2 2 1 . 2 3 2 1 4 1 1 4 3 4 5 Penetration Max 3 | . . . . . 1 . . 3 . . . . . . . . . . . . . . . . 1 1 . 1 . . . 1 1 2 Secondary Targets 14 | . 1 . . . 3 . . 7 . . . . . . . . . . . . . . . . . . . 1 . . . 2 . . Max Gunslinging Chain 1 | . 1 . . . 1 . . 1 . . . . . . . . . . . . . . . . . . . 1 . . . 1 . . Shots Hit Robots 964 | 4 43 6 24 96 219 6 8 163 2 . . 3 4 . 36 . 6 . 6 34 7 9 . 2 42 34 4 22 3 4 4 82 4 87 Core Hits 603 | 3 24 4 18 49 90 2 21 113 4 . . 1 3 . 20 . 4 . 5 19 7 5 . 12 52 13 2 10 7 1 11 31 4 68 Critical Kills 53 | . . 1 1 1 3 . . 24 . . . 1 . . . . . . . . . . . . . 1 . 3 . . 1 6 1 10 Critical Parts Destroyed 76 | . . . . . 2 . . 41 . . . . . . 1 . . . . . . . . . 1 1 . 2 2 1 1 9 1 14 Critical Strikes 145 | . . 1 1 3 6 . . 66 . . . 1 . . 3 . . . . 1 . 2 . . 1 2 . 7 2 1 2 16 2 28 Burn 3 | . . . . . . . . . . . . . . . . . . . . 1 . 2 . . . . . . . . . . . . Destroy 137 | . . 1 1 2 5 . . 66 . . . 1 . . . . . . . . . . . . 1 2 . 7 2 1 2 16 2 28 Corrupt 4 | . . . . 1 1 . . . . . . . . . 2 . . . . . . . . . . . . . . . . . . . Smash 1 | . . . . . . . . . . . . . . . 1 . . . . . . . . . . . . . . . . . . . Melee Attacks 51 | . . . . 4 . . . 2 . . . . . . 11 . . . 5 1 1 1 . 1 . 2 . . . 3 4 9 7 . Impact 17 | . . . . 4 . . . 2 . . . . . . 11 . . . . . . . . . . . . . . . . . . . Slashing . | . . . . . . . . . . . . . . . . . . . . . . . . . . . . . . . . . . . Piercing 34 | . . . . . . . . . . . . . . . . . . . 5 1 1 1 . 1 . 2 . . . 3 4 9 7 . Sneak Attacks 1 | . . . . . . . . . . . . . . . . . . . . . . . . . . . . . . 1 . . . . Combat Hostiles 1 | . . . . . . . . . . . . . . . . . . . . . . . . . . . . . . 1 . . . . Follow-up Attacks . | . . . . . . . . . . . . . . . . . . . . . . . . . . . . . . . . . . . Damage Inflicted 32825 | 51 1058 323 654 2144 4434 88 4040 3026 293 . . 72 92 . 1391 . 326 . 335 1094 441 341 . 790 2186 1029 98 792 732 141 472 2797 123 3462 Guns 18023 | 51 270 11 279 537 3500 88 . 1413 . . . 72 92 . 542 . 118 . 26 863 142 235 . 81 1070 1029 98 792 84 141 107 2797 123 3462 Cannons 3171 | . 562 120 265 1459 671 . . 94 . . . . . . . . . . . . . . . . . . . . . . . . . . Explosions 10990 | . 217 192 110 124 245 . 4040 1494 293 . . . . . 436 . 208 . 199 231 299 106 . 709 1116 . . . 606 . 365 . . . Melee 523 | . . . . . . . . . . . . . . . 413 . . . 110 . . . . . . . . . . . . . . . Ramming 118 | . 9 . . 24 18 . . 25 . . . . . . . . . . . . . . . . . . . . 42 . . . . . Kinetic 13749 | 8 134 11 279 537 3500 88 . 1317 . . . 7 . . . . . . . . . . . . 1070 674 98 792 84 141 107 2252 123 2527 Thermal 4706 | . 217 192 110 124 . . . 327 . . . 65 53 . 263 . 118 . 26 863 142 235 . 81 55 355 . . . . . 545 . 935 Explosive 8933 | . . . . . 245 . 4040 1263 293 . . . . . 436 . 208 . 199 231 299 106 . 709 539 . . . . . 365 . . . Electromagnetic 4796 | 43 698 120 265 1459 671 . . 94 . . . . 39 . 279 . . . . . . . . . 522 . . . 606 . . . . . Impact 413 | . . . . . . . . . . . . . . . 413 . . . . . . . . . . . . . . . . . . . Slashing . | . . . . . . . . . . . . . . . . . . . . . . . . . . . . . . . . . . . Piercing 110 | . . . . . . . . . . . . . . . . . . . 110 . . . . . . . . . . . . . . . Highest Corruption 22 | . . . . . . . 4 10 10 10 6 8 . 5 5 1 1 1 . . 1 1 1 1 2 4 6 1 2 1 . 22 1 7 Average Corruption 4 | . . . . . . . 4 6 10 8 6 7 . 5 1 1 1 1 . . 1 1 1 1 1 2 3 1 2 1 . 11 1 5 Corruption Purged 15 | . . . . . . . . . . 4 . . . . 5 . . . . . . . . . . . 5 1 . . . . . . Corruption Blocked 10 | . . . . . . . . . . . . . . . . . . . . 2 . . . . . 6 . . . . . . . 2 Effects 192 | . . . . . . . 3 71 8 9 . 11 . . 5 . 5 . . . 3 2 1 1 4 10 4 2 3 . . 18 . 32 Message Errors 45 | . . . . . . . . 12 1 4 . 4 . . . . 1 . . . . . . 1 2 3 1 1 2 . . 5 . 8 Matter Fused 49 | . . . . . . . 1 20 2 2 . 2 . . 1 . 1 . . . . 1 1 . . 2 3 . 1 . . 5 . 7 Heat Flow Errors 27 | . . . . . . . . 12 1 1 . 2 . . 2 . 1 . . . 2 1 . . . . . . . . . 3 . 2 Energy Discharges 19 | . . . . . . . 1 6 1 . . . . . 1 . 1 . . . 1 . . . 1 2 . 1 . . . 2 . 2 Parts Rejected 4 | . . . . . . . . 3 . . . . . . 1 . . . . . . . . . . . . . . . . . . . Data Loss (minor) 20 | . . . . . . . 1 7 1 2 . 3 . . . . . . . . . . . . . 1 . . . . . . . 5 Data Loss (major) 7 | . . . . . . . . 4 . . . . . . . . . . . . . . . . 1 1 . . . . . 1 . . Misfires 15 | . . . . . . . . 6 1 . . . . . . . . . . . . . . . . 1 . . . . . 1 . 6 Alerts 1 | . . . . . . . . . 1 . . . . . . . . . . . . . . . . . . . . . . . . . Weapon Failures 5 | . . . . . . . . 1 . . . . . . . . 1 . . . . . . . . . . . . . . 1 . 2 Overload Shots 1 | . . . . . . . . . . . . . . . . . . . . . . . . 1 . . . . . . . . . . Overflow Damage 415 | . 53 4 18 12 6 . . 92 10 . . . . . 183 . . . 5 . . . . 1 . . . . 31 . . . . . Projectiles 75 | . 53 4 . 12 6 . . . . . . . . . . . . . . . . . . . . . . . . . . . . . Explosions 157 | . . . 18 . . . . 92 10 . . . . . . . . . 5 . . . . 1 . . . . 31 . . . . . Melee 183 | . . . . . . . . . . . . . . . 183 . . . . . . . . . . . . . . . . . . . Knockbacks 4 | . . . . . . . . . . . . . . . 4 . . . . . . . . . . . . . . . . . . . Impact 4 | . . . . . . . . . . . . . . . 4 . . . . . . . . . . . . . . . . . . . Kinetic . | . . . . . . . . . . . . . . . . . . . . . . . . . . . . . . . . . . . Secondary . | . . . . . . . . . . . . . . . . . . . . . . . . . . . . . . . . . . . Self-Inflicted Damage 431 | . 24 . . . . . . 188 20 . . . . . 44 . . . . 9 . . . 28 . . . . 101 . 17 . . . Shots 20 | . 1 . . . . . . 11 1 . . . . . 3 . . . . 1 . . . 1 . . . . 1 . 1 . . . Rammed 19 | . 1 . . 2 3 . . 12 . . . . . . . . . . . . . . . . . . . . 1 . . . . . Targets Rammed 21 | . 2 . . 2 3 . . 13 . . . . . . . . . . . . . . . . . . . . 1 . . . . . Kicked . | . . . . . . . . . . . . . . . . . . . . . . . . . . . . . . . . . . . Crushed 2 | . 1 . . . . . . 1 . . . . . . . . . . . . . . . . . . . . . . . . . . Highest Temperature 286 | 20 171 90 27 132 273 . . 284 90 174 . 171 42 . 159 . 109 . . . 173 95 . . 1 6 . 11 24 . . 265 . 286 Average Temperature 50 | 15 40 42 9 28 57 . . 60 51 95 . 79 27 . 38 . 58 . . . 80 52 . . 1 3 . 11 11 . . 66 . 60 Received Heat Transfer 3207 | . 78 12 27 240 945 . . 1224 . . . 45 18 . 153 . . . . 21 27 48 . 9 87 67 . . 108 7 7 18 . 66 Effects 4 | . . . . . 3 . . . . . . . . . . . . . . . . . . . . . . . . . . . . 1 Energy Bleed 1 | . . . . . . . . . . . . . . . . . . . . . . . . . . . . . . . . . . 1 Interference 3 | . . . . . 3 . . . . . . . . . . . . . . . . . . . . . . . . . . . . . Siege Activations . | . . . . . . . . . . . . . . . . . . . . . . . . . . . . . . . . . . . Robots Corrupted 2 | . . . . 1 . . . . . . . . . . . . . . . . . . . . 1 . . . . . . . . . Combat Hostiles 1 | . . . . 1 . . . . . . . . . . . . . . . . . . . . . . . . . . . . . . Parts Fried 27 | . 4 . 1 9 1 . . 1 . . . . . . 5 . . . . . . . . . 1 . . . 3 . . 2 . . Impact Corruptions 7 | . . . . . . . . . . . . . . . 7 . . . . . . . . . . . . . . . . . . . Robots Melted . | . . . . . . . . . . . . . . . . . . . . . . . . . . . . . . . . . . . Combat Hostiles . | . . . . . . . . . . . . . . . . . . . . . . . . . . . . . . . . . . . Parts Melted 11 | . . . 1 . 1 . . 3 . . . . 1 . . . . . . 2 . . . . 2 1 . . . . . . . . Heat Transferred 6256 | . 350 300 150 115 . . . 325 . . . 74 74 . 370 . 148 . 37 1295 185 481 . 87 150 481 . . . . . 814 . 820 Parts Sabotaged . | . . . . . . . . . . . . . . . . . . . . . . . . . . . . . . . . . . . Parts Stolen . | . . . . . . . . . . . . . . . . . . . . . . . . . . . . . . . . . . . Parts Stripped . | . . . . . . . . . . . . . . . . . . . . . . . . . . . . . . . . . . . Power Chain Reactions 11 | . 4 1 1 1 . . . . . . . . . . . . . . . . . . . . 4 . . . . . . . . . Missiles Intercepted 3 | . . . . . . . . . . . . . . . . . . . . . . . . . . . . . . . . . . 3 Alert | -11 -10 -10 -9 -9 -8 -7 -7 -7 -7 -7 -7 -6 -6 -6 -6 -6 -6 -6 -5 -5 -5 -5 -5 -4 -4 -4 -4 -4 -4 -3 -2 -2 -1 -1 ------- Run | Scr Mat Min Mat Sto Mat Fac Was Fac Low Low Dat Pro Fac Was Fac Low Low Zio Pro Fac Upp Upp Zhi Pro Fac Ext Cet Arc Hub Res Res Tes Acc Com Peak Influence 1072 | 10 298 107 283 476 387 125 73 602 . . . . 80 68 332 . . . . 493 . . . . 1011 1072 592 325 667 447 501 539 342 931 Initial 522 | . 5 7 . 74 105 117 36 44 . . . . 35 23 41 . . . . . . . . . 137 414 522 199 . 303 203 245 190 192 Average 230 | 7 84 5 146 164 214 117 54 247 . . . . 62 43 169 . . . . 229 . . . . 501 678 582 68 282 381 324 401 275 624 Maximum Alert Level 3 | . 1 . 1 2 1 . . 2 . . . . . . 1 . . . . 2 . . . . 3 3 2 1 2 2 2 2 1 3 Low Security (%) 55 | 100 91 100 72 71 50 100 100 45 . . . . 100 100 70 . . . . 46 . . . . 9 . . 84 42 . . . 7 10 Level 1 24 | . 8 . 27 25 49 . . 33 . . . . . . 29 . . . . 26 . . . . 19 . . 15 10 52 59 51 92 7 Level 2 16 | . . . . 3 . . . 21 . . . . . . . . . . . 27 . . . . 57 55 100 . 46 47 40 48 . 58 Level 3 3 | . . . . . . . . . . . . . . . . . . . . . . . . . 13 44 . . . . . . . 23 Level 4 . | . . . . . . . . . . . . . . . . . . . . . . . . . . . . . . . . . . . Level 5 . | . . . . . . . . . . . . . . . . . . . . . . . . . . . . . . . . . . . High Security . | . . . . . . . . . . . . . . . . . . . . . . . . . . . . . . . . . . . Max Security . | . . . . . . . . . . . . . . . . . . . . . . . . . . . . . . . . . . . Squads Dispatched 61 | . 2 1 2 5 8 1 . 11 . . . 1 . . 5 . . . . 8 . 1 . . 3 1 . . 2 1 . 6 1 2 Investigation 23 | . 2 . 2 1 6 . . 3 . . . . . . 4 . . . . 2 . . . . 1 . . . 2 . . . . . Extermination 9 | . . . . . . . . 3 . . . . . . 1 . . . . 1 . . . . . . . . . . . 2 . 2 Reinforcement 18 | . . . . 2 2 1 . 5 . . . . . . . . . . . 2 . . . . 1 . . . . 1 . 3 1 . Assault 7 | . . 1 . 2 . . . . . . . 1 . . . . . . . . . 1 . . . 1 . . . . . 1 . . Garrison 4 | . . . . . . . . . . . . . . . . . . . . 3 . . . . 1 . . . . . . . . . Intercept . | . . . . . . . . . . . . . . . . . . . . . . . . . . . . . . . . . . . Searches Triggered . | . . . . . . . . . . . . . . . . . . . . . . . . . . . . . . . . . . . Data Miner Redirects 3 | . . . . . . . . . . . . . . . 3 . . . . . . . . . . . . . . . . . . . Construction Impeded 3 | . . . . . . . . 3 . . . . . . . . . . . . . . . . . . . . . . . . . . Haulers Reinforced 4 | . . . . . . . . . . . . . . . . . . . . 2 . . . . 1 . . . . . . 1 . . Active Scanning Responses . | . . . . . . . . . . . . . . . . . . . . . . . . . . . . . . . . . . . Cargo Convoy Interrupts 1 | . . . . . . . . 1 . . . . . . . . . . . . . . . . . . . . . . . . . . Stealth | -11 -10 -10 -9 -9 -8 -7 -7 -7 -7 -7 -7 -6 -6 -6 -6 -6 -6 -6 -5 -5 -5 -5 -5 -4 -4 -4 -4 -4 -4 -3 -2 -2 -1 -1 --------- Run | Scr Mat Min Mat Sto Mat Fac Was Fac Low Low Dat Pro Fac Was Fac Low Low Zio Pro Fac Upp Upp Zhi Pro Fac Ext Cet Arc Hub Res Res Tes Acc Com Distress Signals 29 | . 1 . 3 9 3 . . 1 . . . . . . . . . . . 3 . . . . 3 1 1 . 1 . 1 . 1 1 Communications Jammed 181 | . . . . . . . . . . . . . . . . . . . . . . . . . . . 40 2 82 34 . 22 . 1 Distress Signals 178 | . . . . . . . . . . . . . . . . . . . . . . . . . . . 40 2 80 34 . 22 . . Times Spotted 491 | . 25 4 14 46 65 2 5 52 3 1 . 5 1 6 21 . 3 . 5 24 6 9 . 6 31 29 5 8 23 13 7 30 15 27 Peak Tracking Total 13 | . 3 4 5 7 7 . 5 8 3 1 . 2 1 6 5 . 2 . 1 4 5 6 . 3 6 8 5 2 11 9 4 7 13 5 Tactical Retreats 31 | . . . . 4 2 . . 7 . . . 1 . . 4 . . . . . 2 2 . . 3 . . . . 1 1 1 1 2 Traps | -11 -10 -10 -9 -9 -8 -7 -7 -7 -7 -7 -7 -6 -6 -6 -6 -6 -6 -6 -5 -5 -5 -5 -5 -4 -4 -4 -4 -4 -4 -3 -2 -2 -1 -1 ------- Run | Scr Mat Min Mat Sto Mat Fac Was Fac Low Low Dat Pro Fac Was Fac Low Low Zio Pro Fac Upp Upp Zhi Pro Fac Ext Cet Arc Hub Res Res Tes Acc Com Traps Triggered 34 | . 3 . 3 2 4 3 . 7 . . . . 1 . 2 . . . . 3 1 . . . 2 2 . . . . . . . 1 Indirectly . | . . . . . . . . . . . . . . . . . . . . . . . . . . . . . . . . . . . Trap Hack Attempts . | . . . . . . . . . . . . . . . . . . . . . . . . . . . . . . . . . . . Triggered . | . . . . . . . . . . . . . . . . . . . . . . . . . . . . . . . . . . . Disarmed . | . . . . . . . . . . . . . . . . . . . . . . . . . . . . . . . . . . . Reprogrammed . | . . . . . . . . . . . . . . . . . . . . . . . . . . . . . . . . . . . Reused . | . . . . . . . . . . . . . . . . . . . . . . . . . . . . . . . . . . . Traps Extracted . | . . . . . . . . . . . . . . . . . . . . . . . . . . . . . . . . . . . Installed . | . . . . . . . . . . . . . . . . . . . . . . . . . . . . . . . . . . . Triggered 3 | . . . . . . . . 1 . . . . . . . . . . . . . . . 2 . . . . . . . . . . Machines | -11 -10 -10 -9 -9 -8 -7 -7 -7 -7 -7 -7 -6 -6 -6 -6 -6 -6 -6 -5 -5 -5 -5 -5 -4 -4 -4 -4 -4 -4 -3 -2 -2 -1 -1 ---------- Run | Scr Mat Min Mat Sto Mat Fac Was Fac Low Low Dat Pro Fac Was Fac Low Low Zio Pro Fac Upp Upp Zhi Pro Fac Ext Cet Arc Hub Res Res Tes Acc Com Machines Disabled 60 | . 1 . 3 1 . . . 10 . . . . . . 1 . . . . 5 . . . . 17 3 . 2 10 . . 5 . 2 Max in Single Turn 8 | . 1 . 1 1 . . . 8 . . . . . . . . . . . 1 . . . . 6 1 . 1 6 . . 1 . 1 Garrison Access 10 | . . . . 1 1 1 . 1 . . . . . . . . . . . 2 . . . . 1 . . . 1 1 . . 1 . Network Hub 1 | . . . . . . . . . . . . . . . . . . . . . . . . . . . . . 1 . . . . . Machines Sabotaged . | . . . . . . . . . . . . . . . . . . . . . . . . . . . . . . . . . . . Garrisons Compromised 1 | . . . . . . . . 1 . . . . . . . . . . . . . . . . . . . . . . . . . . Overloaded Fab Kills . | . . . . . . . . . . . . . . . . . . . . . . . . . . . . . . . . . . . Hacking | -11 -10 -10 -9 -9 -8 -7 -7 -7 -7 -7 -7 -6 -6 -6 -6 -6 -6 -6 -5 -5 -5 -5 -5 -4 -4 -4 -4 -4 -4 -3 -2 -2 -1 -1 --------- Run | Scr Mat Min Mat Sto Mat Fac Was Fac Low Low Dat Pro Fac Was Fac Low Low Zio Pro Fac Upp Upp Zhi Pro Fac Ext Cet Arc Hub Res Res Tes Acc Com Machines Accessed 98 | . 8 1 5 12 11 4 . 15 1 . 3 . . . 10 . 1 . . 6 1 . 4 1 5 . 1 . 1 1 . 3 1 3 Terminals 50 | . 7 . 4 10 6 2 . 8 1 . . . . . 4 . . . . . . . . 1 1 . 1 . . . . 2 . 3 Fabricators 11 | . . . . . . . . 4 . . . . . . 2 . . . . 2 . . . . 2 . . . . . . 1 . . Repair Stations 8 | . . . . 1 1 1 . 1 . . . . . . 3 . . . . . . . . . 1 . . . . . . . . . Recycling Units 2 | . 1 . . . 1 . . . . . . . . . . . . . . . . . . . . . . . . . . . . . Scanalyzers 6 | . . . 1 . 2 . . 1 . . . . . . 1 . . . . 1 . . . . . . . . . . . . . . Garrison Access 11 | . . . . 1 1 1 . 1 . . . . . . . . . . . 3 . . . . 1 . . . 1 1 . . 1 . Total Hacks 288 | . 27 1 14 30 36 10 . 45 1 . 25 . . . 26 . 1 . . 19 1 . 17 2 10 . 1 . 1 1 . 12 1 7 Successful 185 | . 14 1 6 14 20 5 . 28 1 . 25 . . . 19 . 1 . . 14 1 . 17 2 6 . 1 . 1 1 . 4 1 3 Failed 102 | . 12 . 8 16 16 5 . 17 . . . . . . 7 . . . . 5 . . . . 4 . . . . . . 8 . 4 Catastrophic 10 | . 1 . 1 3 2 . . 2 . . . . . . . . . . . . . . . . . . . . . . . 1 . . Database Lockouts 1 | . 1 . . . . . . . . . . . . . . . . . . . . . . . . . . . . . . . . . Manual 166 | . 21 . 8 16 9 3 . 20 . . . . . . 6 . . . . 13 . . . . 10 6 1 . 7 9 . 9 3 25 Terminals 143 | . 26 . 11 27 22 5 . 22 1 . . . . . 7 . . . . . . . . 2 1 . 1 . . . . 11 . 7 Fabricators 46 | . . . . . . . . 19 . . . . . . 9 . . . . 11 . . . . 6 . . . . . . 1 . . Repair Stations 20 | . . . . 2 5 3 . 1 . . . . . . 7 . . . . . . . . . 2 . . . . . . . . . Recycling Units 4 | . 1 . . . 3 . . . . . . . . . . . . . . . . . . . . . . . . . . . . . Scanalyzers 15 | . . . 3 . 5 . . 2 . . . . . . 3 . . . . 2 . . . . . . . . . . . . . . Garrison Access 15 | . . . . 1 1 2 . 1 . . . . . . . . . . . 6 . . . . 1 . . . 1 1 . . 1 . Terminal Hacks 103 | . 13 1 5 8 9 1 . 8 1 . 25 . . . 3 . 1 . . . 1 . 17 2 1 . 1 . . . . 3 . 3 Record 12 | . . . . . . . . . 1 . 4 . . . . . . . . . . . 5 2 . . . . . . . . . . Part Schematic 25 | . 3 . 2 . . . . 2 . . 12 . . . . . . . . . . . 4 . . . . . . . . 2 . . Robot Schematic 6 | . . . . . . . . . . . 6 . . . . . . . . . . . . . . . . . . . . . . . Robot Analysis 8 | . 2 . 1 . 1 . . . . . . . . . . . . . . . . . 4 . . . . . . . . . . . Prototype ID Bank 11 | . 2 . . . 1 1 . . . . 3 . . . . . . . . . . . 4 . . . . . . . . . . . Open Door 10 | . . 1 . 3 . . . . . . . . . . . . 1 . . . 1 . . . 1 . 1 . . . . 1 . 1 Branch Access Points 2 | . . . 1 . . . . 1 . . . . . . . . . . . . . . . . . . . . . . . . . . Machine Index 1 | . . . . . . . . 1 . . . . . . . . . . . . . . . . . . . . . . . . . . Terminal Index 2 | . . . . 1 1 . . . . . . . . . . . . . . . . . . . . . . . . . . . . . Fabricator Index 1 | . . . . . . . . . . . . . . . 1 . . . . . . . . . . . . . . . . . . . Repair Station Index 1 | . . . . . . . . . . . . . . . 1 . . . . . . . . . . . . . . . . . . . Unreport Threat 13 | . 3 . 1 2 3 . . 3 . . . . . . 1 . . . . . . . . . . . . . . . . . . . Locate Traps 4 | . 3 . . 1 . . . . . . . . . . . . . . . . . . . . . . . . . . . . . . Security Status 1 | . . . . . 1 . . . . . . . . . . . . . . . . . . . . . . . . . . . . . Recall Investigation 1 | . . . . . 1 . . . . . . . . . . . . . . . . . . . . . . . . . . . . . Hauler Manifests 1 | . . . . 1 . . . . . . . . . . . . . . . . . . . . . . . . . . . . . . Registered Components 1 | . . . . . 1 . . . . . . . . . . . . . . . . . . . . . . . . . . . . . Zone Layout 1 | . . . . . . . . 1 . . . . . . . . . . . . . . . . . . . . . . . . . . Disengage Seal 2 | . . . . . . . . . . . . . . . . . . . . . . . . . . . . . . . . . . 2 Fabricator Hacks 28 | . . . . . . . . 11 . . . . . . 6 . . . . 7 . . . . 4 . . . . . . . . . Network Status 1 | . . . . . . . . . . . . . . . . . . . . 1 . . . . . . . . . . . . . . Load Schematic 16 | . . . . . . . . 6 . . . . . . 4 . . . . 4 . . . . 2 . . . . . . . . . Build 11 | . . . . . . . . 5 . . . . . . 2 . . . . 2 . . . . 2 . . . . . . . . . Repair Station Hacks 12 | . . . . 2 4 2 . . . . . . . . 4 . . . . . . . . . . . . . . . . . . . Scan Component 7 | . . . . 1 2 1 . . . . . . . . 3 . . . . . . . . . . . . . . . . . . . Repair 5 | . . . . 1 2 1 . . . . . . . . 1 . . . . . . . . . . . . . . . . . . . Recycling Unit Hacks 1 | . . . . . 1 . . . . . . . . . . . . . . . . . . . . . . . . . . . . . Retrieve Components 1 | . . . . . 1 . . . . . . . . . . . . . . . . . . . . . . . . . . . . . Scanalyzer 8 | . . . 1 . 2 . . 2 . . . . . . 1 . . . . 2 . . . . . . . . . . . . . . Insert Component 5 | . . . 1 . 1 . . 1 . . . . . . 1 . . . . 1 . . . . . . . . . . . . . . Analyze 3 | . . . . . 1 . . 1 . . . . . . . . . . . 1 . . . . . . . . . . . . . . Garrison Access Hacks 10 | . . . . 1 1 1 . 1 . . . . . . . . . . . 2 . . . . 1 . . . 1 1 . . 1 . Seal Access 10 | . . . . 1 1 1 . 1 . . . . . . . . . . . 2 . . . . 1 . . . 1 1 . . 1 . Unauthorized Hacks 23 | . 1 . . 3 3 1 . 6 . . . . . . 5 . . . . 3 . . . . . . . . . . . 1 . . Terminals 10 | . 1 . . 3 . 1 . 2 . . . . . . 3 . . . . . . . . . . . . . . . . . . . Track 2 | . . . . 1 . . . 1 . . . . . . . . . . . . . . . . . . . . . . . . . . Botnet 3 | . . . . . . 1 . . . . . . . . 2 . . . . . . . . . . . . . . . . . . . Disrupt 2 | . . . . 1 . . . 1 . . . . . . . . . . . . . . . . . . . . . . . . . . Operators 3 | . 1 . . 1 . . . . . . . . . . 1 . . . . . . . . . . . . . . . . . . . Fabricators 10 | . . . . . . . . 4 . . . . . . 2 . . . . 3 . . . . . . . . . . . 1 . . Prioritize 3 | . . . . . . . . 2 . . . . . . . . . . . 1 . . . . . . . . . . . . . . Liberate 1 | . . . . . . . . . . . . . . . . . . . . . . . . . . . . . . . . 1 . . Recompile 6 | . . . . . . . . 2 . . . . . . 2 . . . . 2 . . . . . . . . . . . . . . Repair Stations . | . . . . . . . . . . . . . . . . . . . . . . . . . . . . . . . . . . . Recycling Units 1 | . . . . . 1 . . . . . . . . . . . . . . . . . . . . . . . . . . . . . Mask 1 | . . . . . 1 . . . . . . . . . . . . . . . . . . . . . . . . . . . . . Scanalyzers 2 | . . . . . 2 . . . . . . . . . . . . . . . . . . . . . . . . . . . . . Extract 2 | . . . . . 2 . . . . . . . . . . . . . . . . . . . . . . . . . . . . . Garrison Access . | . . . . . . . . . . . . . . . . . . . . . . . . . . . . . . . . . . . Data Cores Recovered 3 | . . . . . . . . . . . . . . . 1 . . . . 2 . . . . . . . . . . . . . . Used 1 | . . . . . . . . . . . . . . . 1 . . . . . . . . . . . . . . . . . . . Hacking Detections 60 | . 7 . 5 8 7 3 . 13 . . . . . . 9 . . . . 3 . . . 1 3 . . . . . . . . 1 Full Trace Events 5 | . . . 1 . 1 . . 1 . . . . . . 1 . . . . . . . . . 1 . . . . . . . . . Feedback Events . | . . . . . . . . . . . . . . . . . . . . . . . . . . . . . . . . . . . Feedback Blocked . | . . . . . . . . . . . . . . . . . . . . . . . . . . . . . . . . . . . Robot Schematics Acquired 9 | . . . . . . . . . . . 6 . . . . . . . . . . . . . . . . . . . . . . 3 Robots Built . | . . . . . . . . . . . . . . . . . . . . . . . . . . . . . . . . . . . Authchips . | . . . . . . . . . . . . . . . . . . . . . . . . . . . . . . . . . . . Time . | . . . . . . . . . . . . . . . . . . . . . . . . . . . . . . . . . . . Total Robot Build Rating . | . . . . . . . . . . . . . . . . . . . . . . . . . . . . . . . . . . . Part Schematics Acquired 34 | . 3 . 2 . 4 . . 3 . . 12 . . . . . . . . 1 . . 4 . . . . . . . . 5 . . Parts Built 17 | . . . . . . . . 10 . . . . . . 2 . . . . 2 . . . . 3 . . . . . . . . . Authchips 8 | . . . . . . . . 3 . . . . . . 2 . . . . 2 . . . . 1 . . . . . . . . . Time 733 | . . . . . . . . 342 . . . . . . 140 . . . . 142 . . . . 109 . . . . . . . . . Total Part Build Rating 96 | . . . . . . . . 54 . . . . . . 12 . . . . 13 . . . . 17 . . . . . . . . . Parts Repaired 5 | . . . . 1 2 1 . . . . . . . . 1 . . . . . . . . . . . . . . . . . . . Time 179 | . . . . 32 85 19 . . . . . . . . 43 . . . . . . . . . . . . . . . . . . . Parts Recycled . | . . . . . . . . . . . . . . . . . . . . . . . . . . . . . . . . . . . Recycled Matter . | . . . . . . . . . . . . . . . . . . . . . . . . . . . . . . . . . . . Retrieved Matter . | . . . . . . . . . . . . . . . . . . . . . . . . . . . . . . . . . . . Retrieved Components 9 | . . . . . 9 . . . . . . . . . . . . . . . . . . . . . . . . . . . . . Parts Scanalyzed 5 | . . . 1 . 1 . . 1 . . . . . . 1 . . . . 1 . . . . . . . . . . . . . . Part Schematics Acquired 3 | . . . . . 1 . . 1 . . . . . . . . . . . 1 . . . . . . . . . . . . . . Parts Damaged . | . . . . . . . . . . . . . . . . . . . . . . . . . . . . . . . . . . . Bothacking | -11 -10 -10 -9 -9 -8 -7 -7 -7 -7 -7 -7 -6 -6 -6 -6 -6 -6 -6 -5 -5 -5 -5 -5 -4 -4 -4 -4 -4 -4 -3 -2 -2 -1 -1 ------------ Run | Scr Mat Min Mat Sto Mat Fac Was Fac Low Low Dat Pro Fac Was Fac Low Low Zio Pro Fac Upp Upp Zhi Pro Fac Ext Cet Arc Hub Res Res Tes Acc Com Used RIF Installer . | . . . . . . . . . . . . . . . . . . . . . . . . . . . . . . . . . . . Robots Hacked 1 | . . . . . . . . . . . . . . . . . . . . . . . . . . . . . . . . . . 1 Non-combat . | . . . . . . . . . . . . . . . . . . . . . . . . . . . . . . . . . . . Combat . | . . . . . . . . . . . . . . . . . . . . . . . . . . . . . . . . . . . Robot Hacks Applied . | . . . . . . . . . . . . . . . . . . . . . . . . . . . . . . . . . . . Manual 1 | . . . . . . . . . . . . . . . . . . . . . . . . . . . . . . . . . . 1 Relay Couplers Released 1 | . . . . . . . . . . . . . . . . . . . . . . . . . . . . . 1 . . . . . Machine Destruction 1 | . . . . . . . . . . . . . . . . . . . . . . . . . . . . . 1 . . . . . Fabnet Peak Effective % . | . . . . . . . . . . . . . . . . . . . . . . . . . . . . . . . . . . . Robots Rewired 12 | . . . . . . . . . . . . . . . . . . . . . . . . . 1 11 . . . . . . . . Allies Hacked 5 | . . . . . . . . . . . . . . . . . . . . . . . . . . . . . . 2 . . . 3 Hacks Repelled . | . . . . . . . . . . . . . . . . . . . . . . . . . . . . . . . . . . . Allies | -11 -10 -10 -9 -9 -8 -7 -7 -7 -7 -7 -7 -6 -6 -6 -6 -6 -6 -6 -5 -5 -5 -5 -5 -4 -4 -4 -4 -4 -4 -3 -2 -2 -1 -1 -------- Run | Scr Mat Min Mat Sto Mat Fac Was Fac Low Low Dat Pro Fac Was Fac Low Low Zio Pro Fac Upp Upp Zhi Pro Fac Ext Cet Arc Hub Res Res Tes Acc Com Total Allies 139 | . . 1 . 12 . . 1 . . . . 1 . . . . . 7 . 3 . . . . 5 28 5 . 8 6 . 2 4 56 Largest Group 33 | . . 1 1 10 10 . 1 . . . . 1 . . . . . 7 7 6 . . . . 5 24 23 23 21 6 . 2 3 33 Highest-Rated Group 3109 | . . 31 31 88 88 . 31 . . . . 96 . . . . . 218 218 221 . . . . 203 1258 1434 1434 1358 405 . 164 374 3109 Highest-Rated Ally 269 | . . 31 31 31 16 . 31 . . . . 96 . . . . . 40 40 51 . . . . 47 159 159 146 103 96 . 82 269 269 Zionite Dispatches 10 | . . . . . . . . . . . . . . . . . . . . 1 . . . . 1 2 . . 3 2 . . 1 . Heavy 1 | . . . . . . . . . . . . . . . . . . . . . . . . . . 1 . . . . . . . . Light 2 | . . . . . . . . . . . . . . . . . . . . . . . . . . . . . 1 1 . . . . Fire 3 | . . . . . . . . . . . . . . . . . . . . . . . . . 1 . . . 1 1 . . . . Hacker 2 | . . . . . . . . . . . . . . . . . . . . 1 . . . . . 1 . . . . . . . . Experimental 1 | . . . . . . . . . . . . . . . . . . . . . . . . . . . . . . . . . 1 . Hover Resupply 1 | . . . . . . . . . . . . . . . . . . . . . . . . . . . . . 1 . . . . . Total Orders 76 | . . . . . . . . . . . . . . . 2 . 3 2 3 25 2 5 . . 10 7 . . 2 1 5 9 . . STAY 1 | . . . . . . . . . . . . . . . . . . . 1 . . . . . . . . . . . . . . . ROAM 5 | . . . . . . . . . . . . . . . . . . . . 1 . . . . . . . . . . 2 2 . . FOLLOW 5 | . . . . . . . . . . . . . . . . . . 1 1 3 . . . . . . . . . . . . . . DROP 1 | . . . . . . . . . . . . . . . . . . . . . . . . . . . . . 1 . . . . . EXPLORE 2 | . . . . . . . . . . . . . . . . . . . . 2 . . . . . . . . . . . . . . RETURN 62 | . . . . . . . . . . . . . . . 2 . 3 1 1 19 2 5 . . 10 7 . . 1 1 3 7 . . Ally Attacks 1144 | . . 7 16 27 110 . 5 . . . . 11 . . 9 . 40 . 13 132 24 34 . . 142 136 37 31 70 8 10 56 3 223 Total Damage 32915 | . . 61 145 290 1068 . 83 . . . . 338 . . 193 . 863 . 316 4104 430 672 . . 2827 4047 1237 1022 2933 209 192 1250 119 10516 Kills 161 | . . . 2 4 13 . . . . . . 2 . . 2 . 3 . 1 28 3 5 . . 16 24 4 3 19 1 . 4 1 26 Allies Corrupted 7 | . . . . . . . . . . . . . . . . . . . . . . . . . . 1 . . . 3 . . 1 2 Allies Melted . | . . . . . . . . . . . . . . . . . . . . . . . . . . . . . . . . . . . Intel | -11 -10 -10 -9 -9 -8 -7 -7 -7 -7 -7 -7 -6 -6 -6 -6 -6 -6 -6 -5 -5 -5 -5 -5 -4 -4 -4 -4 -4 -4 -3 -2 -2 -1 -1 ------- Run | Scr Mat Min Mat Sto Mat Fac Was Fac Low Low Dat Pro Fac Was Fac Low Low Zio Pro Fac Upp Upp Zhi Pro Fac Ext Cet Arc Hub Res Res Tes Acc Com Robot Analysis Total 8 | . 2 . 1 . 1 . . . . . . . . . . . . . . . . . 4 . . . . . . . . . . . Derelict Logs Recovered 15 | . . 2 . . . . . . 1 . . 1 . . . 2 1 2 2 . 1 1 . 2 . . . . . . . . . . Drone Launches 103 | . . . . . . . . . . . . . . . 4 . 7 2 1 29 3 7 . . 19 11 . . 2 2 4 12 . . Drone Recoveries 95 | . . . . . . . . . . . . . . . 4 . 6 1 1 27 3 7 . . 17 11 . . 2 2 4 10 . . Zionite Intel Received 13 | . . . . . . . . . . . . . . . . . . . . 1 . . . . 2 . . . . 1 . 2 . 7 Main Access 2 | . . . . . . . . . . . . . . . . . . . . . . . . . . . . . . 1 . 1 . . Emergency Access 1 | . . . . . . . . . . . . . . . . . . . . . . . . . . . . . . . . . . 1 Guard Positions 1 | . . . . . . . . . . . . . . . . . . . . . . . . . . . . . . . . . . 1 Prototype Stockpiles 2 | . . . . . . . . . . . . . . . . . . . . 1 . . . . . . . . . . . . . 1 Unaware Schematics 1 | . . . . . . . . . . . . . . . . . . . . . . . . . . . . . . . . . . 1 Unaware Analyses 2 | . . . . . . . . . . . . . . . . . . . . . . . . . 1 . . . . . . . . 1 Trap Installations 1 | . . . . . . . . . . . . . . . . . . . . . . . . . . . . . . . . . . 1 Active Terminals 1 | . . . . . . . . . . . . . . . . . . . . . . . . . . . . . . . . . . 1 Active Garrisons 2 | . . . . . . . . . . . . . . . . . . . . . . . . . 1 . . . . . . 1 . . Exploration | -11 -10 -10 -9 -9 -8 -7 -7 -7 -7 -7 -7 -6 -6 -6 -6 -6 -6 -6 -5 -5 -5 -5 -5 -4 -4 -4 -4 -4 -4 -3 -2 -2 -1 -1 ------------- Run | Scr Mat Min Mat Sto Mat Fac Was Fac Low Low Dat Pro Fac Was Fac Low Low Zio Pro Fac Upp Upp Zhi Pro Fac Ext Cet Arc Hub Res Res Tes Acc Com Turns Passed 22716 | 32 1398 1317 365 1711 2398 287 109 2138 210 198 48 262 122 52 877 165 380 777 496 1243 428 474 105 212 497 734 241 2571 120 292 212 875 183 1187 Spaces Moved 17264 | 12 603 501 174 699 1090 316 159 1340 332 261 83 440 145 79 958 262 511 885 552 1515 596 661 147 316 487 734 111 67 195 444 253 751 316 1269 Core . | . . . . . . . . . . . . . . . . . . . . . . . . . . . . . . . . . . . Treads 3861 | 12 603 501 174 699 1090 60 . 599 . . . . . . . . . . . . . . . . . . . . . . . . . 123 Legs . | . . . . . . . . . . . . . . . . . . . . . . . . . . . . . . . . . . . Wheels . | . . . . . . . . . . . . . . . . . . . . . . . . . . . . . . . . . . . Hover 13403 | . . . . . . 256 159 741 332 261 83 440 145 79 958 262 511 885 552 1515 596 661 147 316 487 734 111 67 195 444 253 751 316 1146 Flight . | . . . . . . . . . . . . . . . . . . . . . . . . . . . . . . . . . . . Fastest Speed 40 | 160 160 240 160 160 156 48 48 48 55 55 55 55 55 60 60 63 63 63 63 63 56 63 56 56 46 50 50 50 46 46 56 48 44 40 Average Speed 86 | 160 207 240 162 160 162 71 48 109 58 55 55 55 58 60 62 63 63 63 63 63 62 63 60 56 53 50 53 74 46 52 56 62 44 69 Slowest Speed 320 | 160 240 240 320 160 170 170 48 250 68 55 55 128 60 60 142 63 63 63 63 142 63 63 63 56 130 50 120 120 122 56 56 186 44 240 Overloaded Moves . | . . . . . . . . . . . . . . . . . . . . . . . . . . . . . . . . . . . Propulsion Burnouts . | . . . . . . . . . . . . . . . . . . . . . . . . . . . . . . . . . . . Robots Hopped . | . . . . . . . . . . . . . . . . . . . . . . . . . . . . . . . . . . . Cave-ins Triggered . | . . . . . . . . . . . . . . . . . . . . . . . . . . . . . . . . . . . Teleports 1 | . . . . . . . . . . . . . . . . . . . . . . . . . . . . . . . . 1 . . Exploration Rate (%) 54 | 2 97 103 25 90 95 8 84 47 57 41 72 92 3 74 25 58 65 89 76 35 74 81 61 61 19 81 69 79 28 18 9 52 13 40 Regions Visited 34 Branch Regions 20 Pre-discovered Areas 15 | . . 1 . . . . . . 1 . 1 . . . . 2 1 2 2 . 1 1 3 . . . . . . . . . . . Known Exits Taken 22 | . . . 1 . . . . 1 1 1 1 1 . . 1 1 . . . 1 1 1 1 1 1 1 1 1 1 1 1 1 1 . Unknown Exits Taken 8 | 1 1 1 . 1 1 . . . . . . . . . . . 1 1 1 . . . . . . . . . . . . . . . Scrap Searched 24 | . . 1 . . . . . . 3 2 . 4 . . . 1 2 2 4 . 2 2 . 1 . . . . . . . . . . Spaces Dug 31 | . . . . 13 . . . 2 . . . . . . 2 . . . . 1 1 . . . . . . . . 2 2 4 4 . Terrain Destroyed 790 | . 7 3 2 23 15 . 188 114 23 . . . . . 26 . 13 . 24 11 33 17 . 38 20 4 3 8 165 3 41 4 4 1 Melee 20 | . . . . 2 . . . 2 . . . . . . 2 . . . . 1 1 . . . . . . . . 2 2 4 4 . Projectile 21 | . . . . . . . . . . . . . . . . . . . . . . . . 1 2 4 3 8 3 . . . . . AOE 742 | . 7 3 2 21 15 . 188 107 23 . . . . . 24 . 13 . 24 10 32 17 . 37 18 . . . 162 . 39 . . . Terrain Rammed . | . . . . . . . . . . . . . . . . . . . . . . . . . . . . . . . . . . . Walls Destroyed . | . . . . . . . . . . . . . . . . . . . . . . . . . . . . . . . . . . . Machines Disabled . | . . . . . . . . . . . . . . . . . . . . . . . . . . . . . . . . . . . Actions | -11 -10 -10 -9 -9 -8 -7 -7 -7 -7 -7 -7 -6 -6 -6 -6 -6 -6 -6 -5 -5 -5 -5 -5 -4 -4 -4 -4 -4 -4 -3 -2 -2 -1 -1 --------- Run | Scr Mat Min Mat Sto Mat Fac Was Fac Low Low Dat Pro Fac Was Fac Low Low Zio Pro Fac Upp Upp Zhi Pro Fac Ext Cet Arc Hub Res Res Tes Acc Com Total 23756 | 18 695 611 222 1157 1469 371 170 1788 343 314 84 457 179 84 1177 261 559 1104 685 1756 634 701 163 339 671 1054 286 2561 216 487 305 1012 342 1481 Wait 4688 | . 12 102 . 330 178 19 1 213 . 51 . . . . 150 . 33 209 117 117 14 24 . . 104 207 162 2480 5 7 33 69 . 51 Move 17231 | 11 602 500 173 698 1089 316 158 1340 331 260 82 439 144 78 957 261 510 884 551 1514 595 660 146 315 486 733 110 66 194 443 252 750 315 1268 Hop . | . . . . . . . . . . . . . . . . . . . . . . . . . . . . . . . . . . . Pick Up 220 | 1 23 2 10 10 21 11 . 34 2 . . 4 15 3 9 . 2 3 . 13 3 1 1 3 5 6 2 . 1 7 2 13 4 9 Fast Attach 138 | . 3 . 7 8 5 3 1 18 . 2 1 1 5 . 5 . 1 1 4 5 2 . 8 2 8 1 2 1 3 2 . 25 1 13 Attach 88 | 1 4 . 2 . 8 4 . 20 1 . . . 2 1 5 . . 1 . 7 3 . . . 4 1 . . 2 3 2 8 2 7 Detach 14 | . . . . 1 . . . 3 . . . . 1 . . . . . . . 1 . . . 1 1 . . . . . 2 1 3 Swap 171 | 2 3 . 3 13 11 5 1 22 6 . . 4 2 . 12 . 1 2 2 9 6 3 . 6 6 8 1 . 1 10 7 12 4 9 Drop 270 | . 12 2 8 19 27 9 1 23 1 1 1 7 7 2 11 . 2 3 4 16 1 . 8 6 9 8 3 1 3 8 1 40 2 24 Fire 774 | 3 34 5 19 72 127 4 8 101 2 . . 2 2 . 17 . 9 . 2 46 8 12 . 6 47 29 6 13 6 4 4 84 6 96 Melee 51 | . . . . 4 . . . 2 . . . . . . 11 . . . 5 1 1 1 . 1 . 2 . . . 3 4 9 7 . Ram 2 | . . . . . . . . 1 . . . . . . . . . . . . . . . . . . . . 1 . . . . . Kick . | . . . . . . . . . . . . . . . . . . . . . . . . . . . . . . . . . . . Crush 18 | . 2 . . 2 3 . . 11 . . . . . . . . . . . . . . . . . . . . . . . . . . Escape Stasis 53 | . . . . . . . . . . . . . 1 . . . . . . 26 . . . . . 26 . . . . . . . . Rewire 34 | . . . . . . . . . . . . . . . . . . . . . . . . . 1 32 . . . . . . . 1 Trap . | . . . . . . . . . . . . . . . . . . . . . . . . . . . . . . . . . . . Miscellaneous 4 | . . . . . . . . . . . . . . . . . 1 1 . 2 . . . . . . . . . . . . . . Route ------- -11/Scrapyard -10/Materials (discovered 4 exits: *Mat x3 / *Min) -10/Mines (discovered 2 exits: *Mat x2) -9/Materials (discovered 4 exits: *Mat / Min / *Sto x2) -9/Storage -8/Materials (discovered 3 exits: *Fac x3) -7/Factory -7/Waste -7/Factory (discovered 2 exits: *Low x2) -7/Lower Caves -7/Lower Caves (discovered 2 exits: *Fac / *Dat) -7/Data Miner -6/Proximity Caves -6/Factory -6/Waste -6/Factory -6/Lower Caves -6/Lower Caves -6/Zion (discovered 2 exits: Dee / [*Pro]) -5/Proximity Caves -5/Factory (discovered 2 exits: *Fac / *Upp) -5/Upper Caves -5/Upper Caves (discovered 2 exits: *Fac / *Zhi) -5/Zhirov -4/Proximity Caves -4/Factory -4/Extension (discovered 2 exits: *Res / *Cet) -4/Cetus -4/Archives (discovered 3 exits: *Res / *Hub x2) -4/Hub_04(d) -3/Research (discovered 3 exits: *Res x3) -2/Research -2/Testing -1/Access (discovered 2 exits: Sur / *Com) -1/Command To Epsilon Eridani History --------- Turn | Location | Event 13 | -11/Scrapyard | Discovered new exit (range 3) 33 | -11/Scrapyard | Entered Materials 167 | -10/Materials | Central database locked down 173 | -10/Materials | Discovered new exit (range 16) 315 | -10/Materials | Build established: Mutant 357 | -10/Materials | Discovered new exit (range 15) 480 | -10/Materials | Discovered new exit (range 8) 1105 | -10/Materials | Discovered new exit (range 9) 1431 | -10/Materials | Entered Mines 1440 | -10/Mines | Met a Derelict who couldn't figure out how to use a Trap Extractor 1584 | -10/Mines | Discovered new exit (range 9) 1684 | -10/Mines | Met a Derelict testing a Signal Generator 2024 | -10/Mines | Learned Materials security intel 2512 | -10/Mines | Learned location of Mines (-8) 2703 | -10/Mines | Discovered new exit (range 10) 2748 | -10/Mines | Entered Materials 2748 | -9/Materials | Accompanied by 1 ally 2748 | -9/Materials | Evolved 2 slots: Propulsion x1, Utility x1 2924 | -9/Materials | Identified exit to Mines 2924 | -9/Materials | Identified exit to Storage 3086 | -9/Materials | Discovered new exit (range 15) 3113 | -9/Materials | Entered Storage 3468 | -9/Storage | Found Prototype Launcher 3468 | -9/Storage | Identified Scatter Rocket Array 3977 | -9/Storage | Found Prototype Processor 3977 | -9/Storage | Identified Exp. Targeting Computer 3983 | -9/Storage | Found Exp. Targeting Computer 4026 | -9/Storage | Discovered new exit (range 5) 4360 | -9/Storage | Met a pair of Derelict thieves 4534 | -9/Storage | Repaired Imp. Treads 4669 | -9/Storage | Assisted by bots powering up and referring to "LRC-V3" 4824 | -9/Storage | Entered Materials 4824 | -8/Materials | Accompanied by 10 allies 4824 | -8/Materials | Evolved 2 slots: Propulsion x1, Utility x1 4964 | -8/Materials | Build established: Commander-Mutant 5003 | -8/Materials | Repaired Corrupted Imp. Sensor Array 5036 | -8/Materials | Repaired Imp. Treads 5632 | -8/Materials | Discovered new exit (range 15) 5671 | -8/Materials | Build established: Mutant 6357 | -8/Materials | Discovered new exit (range 9) 6702 | -8/Materials | Discovered new exit (range 16) 7222 | -8/Materials | Entered Factory 7222 | -7/Factory | Evolved 2 slots: Utility x2 7504 | -7/Factory | Repaired Imp. Sensor Array 7509 | -7/Factory | Sucked down chute 7509 | -7/Factory | Entered Waste 7510 | -7/Waste | Met a frightened Derelict 7513 | -7/Waste | Spotted C-40 Crusher 7519 | -7/Waste | Spotted C-40 Crusher 7524 | -7/Waste | EMP discharged 7526 | -7/Waste | Spotted C-40 Crusher 7527 | -7/Waste | Spotted C-40 Crusher 7533 | -7/Waste | Spotted C-40 Crusher 7536 | -7/Waste | Spotted C-40 Crusher 7550 | -7/Waste | Destroyed C-40 Crusher 7568 | -7/Waste | Destroyed C-40 Crusher 7568 | -7/Waste | Destroyed C-40 Crusher 7568 | -7/Waste | Destroyed C-40 Crusher 7577 | -7/Waste | Destroyed C-40 Crusher 7585 | -7/Waste | Destroyed C-40 Crusher 7604 | -7/Waste | Discovered new exit (range 11) 7617 | -7/Waste | Identified exit to Factory 7618 | -7/Waste | Entered Factory 7814 | -7/Factory | Fabricated Hyp. Gauss Rifle (x2) 7866 | -7/Factory | Fabricated Hyp. Gauss Rifle (x2) 7955 | -7/Factory | Lost 3 parts (2n1u) 8120 | -7/Factory | Fabricated Cmb. Airjet? 8220 | -7/Factory | Build established: Hacker-Mutant 8559 | -7/Factory | Identified exit to Lower Caves 8748 | -7/Factory | Fabricated Adv. Thermal Shield (x2) 8778 | -7/Factory | Cargo convoy interrupted 8797 | -7/Factory | Fabricated Cmb. Airjet (x2) 9199 | -7/Factory | Build established: Hacker-Skirmisher 9461 | -7/Factory | Core integrity fell below 50% 9601 | -7/Factory | System corruption reached 10% 9756 | -7/Factory | Entered Lower Caves 9766 | -7/Lower Caves | Learned location of Extension (-4) 9959 | -7/Lower Caves | Discovered new exit (range 14) 9965 | -7/Lower Caves | Identified exit to Lower Caves 9966 | -7/Lower Caves | Entered another Lower Caves area 9967 | -7/Lower Caves | Encountered a Warlord checkpoint 9970 | -7/Lower Caves | Discovered new exit (range 9) 10116 | -7/Lower Caves | Build established: Hacker-Mutant 10160 | -7/Lower Caves | Discovered new exit (range 9) 10163 | -7/Lower Caves | Identified exit to Data Miner 10164 | -7/Lower Caves | Entered Data Miner 10164 | -7/Data Miner | Discovered new exit (range 6) 10167 | -7/Data Miner | Identified exit to Proximity Caves 10174 | -7/Data Miner | Met Data Miner 10186 | -7/Data Miner | Learned location of Section 7 (-2) 10186 | -7/Data Miner | Acquired the access code to Warlord's prototype stash 10196 | -7/Data Miner | Received God Mode back door access code from Data Miner 10212 | -7/Data Miner | Entered Proximity Caves 10311 | -6/Proximity Caves | Escorted by Enhanced Grunt 10361 | -6/Proximity Caves | Attracted the attention of an 0b10 outpost 10430 | -6/Proximity Caves | Spotted B-75 Beast 10470 | -6/Proximity Caves | Discovered new exit (range 11) 10470 | -6/Proximity Caves | Learned Factory stockpile data 10474 | -6/Proximity Caves | Identified exit to Factory 10474 | -6/Proximity Caves | Entered Factory 10474 | -6/Factory | Evolved 2 slots: Utility x2 10596 | -6/Factory | Sucked down chute 10596 | -6/Factory | Entered Waste 10602 | -6/Waste | Spotted C-40 Crusher 10605 | -6/Waste | Found Adv. Powered Armor 10606 | -6/Waste | Spotted C-40 Crusher 10607 | -6/Waste | Spotted C-40 Crusher 10611 | -6/Waste | EMP discharged 10618 | -6/Waste | Spotted C-40 Crusher 10634 | -6/Waste | Spotted C-40 Crusher 10636 | -6/Waste | Discovered new exit (range 20) 10636 | -6/Waste | Spotted C-40 Crusher 10648 | -6/Waste | Identified exit to Factory 10648 | -6/Waste | Entered Factory 10858 | -6/Factory | Incoming investigation squad redirected 10892 | -6/Factory | Discovered new exit (range 15) 10907 | -6/Factory | Identified exit to Lower Caves 11113 | -6/Factory | Fabricated Combat Drone Bay? 11142 | -6/Factory | Incoming investigation squad redirected 11397 | -6/Factory | Repaired Broken Imp. Antigrav System 11402 | -6/Factory | Fabricated Combat Drone Bay? 11425 | -6/Factory | Incoming investigation squad redirected 11507 | -6/Factory | Build established: Hacker-Scout 11525 | -6/Factory | Entered Lower Caves 11646 | -6/Lower Caves | Encountered a Warlord checkpoint 11647 | -6/Lower Caves | Learned location of Zion (-6) 11684 | -6/Lower Caves | Discovered new exit (range 11) 11689 | -6/Lower Caves | Identified exit to Lower Caves 11690 | -6/Lower Caves | Entered another Lower Caves area 11790 | -6/Lower Caves | Spotted B-75 Beast 11841 | -6/Lower Caves | Destroyed B-75 Beast 12006 | -6/Lower Caves | Encountered a Warlord checkpoint 12049 | -6/Lower Caves | Discovered new exit (range 9) 12070 | -6/Lower Caves | Entered Zion 12082 | -6/Zion | Given A8's code to call for help 12094 | -6/Zion | System corruption cleaned by Quarantine Array 12103 | -6/Zion | Gained Derelict followers 12121 | -6/Zion | Build established: Hacker-Mutant 12134 | -6/Zion | Discovered new exit (range 18) 12183 | -6/Zion | Learned location of Warlord (-4) 12250 | -6/Zion | Found CR-A16's Pointy Stick 12286 | -6/Zion | Given the Hacking Drone Bay 12311 | -6/Zion | Found Prototype Device 12327 | -6/Zion | Identified exit to Deep Caves 12480 | -6/Zion | Learned location of 1 exit from Lower Caves 12482 | -6/Zion | Received a hallucinogenic algorithm 12496 | -6/Zion | Acquired unknown access codes intercepted by a Zionite 12522 | -6/Zion | Identified Hacking Drone Bay 12537 | -6/Zion | Imprinted 12539 | -6/Zion | Declared Zion's savior 12847 | -6/Zion | Entered Proximity Caves 12847 | -5/Proximity Caves | Accompanied by 8 allies 12900 | -5/Proximity Caves | Spotted B-75 Beast 12914 | -5/Proximity Caves | Revealed the true nature of CR-A16's Pointy Stick 12917 | -5/Proximity Caves | Destroyed B-75 Beast 13003 | -5/Proximity Caves | Learned location of Armory (-3) 13238 | -5/Proximity Caves | Discovered new exit (range 6) 13343 | -5/Proximity Caves | Entered Factory 13343 | -5/Factory | Accompanied by 7 allies 13343 | -5/Factory | Evolved 2 slots: Utility x2 13621 | -5/Factory | Retrieved Zion intel report: Prototype Stockpiles 13757 | -5/Factory | Fabricated Combat Drone Bay (x1) 13993 | -5/Factory | Fabricated Lrn. Sensor Array (x1) 14024 | -5/Factory | Garrison activated, responded to threat 14190 | -5/Factory | Discovered new exit (range 8) 14220 | -5/Factory | Zion Hacker squad teleported in 14272 | -5/Factory | Spotted B-75 Beast 14340 | -5/Factory | Discovered new exit (range 5) 14552 | -5/Factory | Identified exit to Factory 14585 | -5/Factory | Identified exit to Upper Caves 14586 | -5/Factory | Entered Upper Caves 14848 | -5/Upper Caves | Build established: Hacker-Scout 14951 | -5/Upper Caves | Found Alien Artifact 14951 | -5/Upper Caves | Identified Core Expander 14951 | -5/Upper Caves | Installed Core Expander, added new Propulsion slot 14990 | -5/Upper Caves | Discovered new exit (range 7) 14993 | -5/Upper Caves | Identified exit to Upper Caves 15014 | -5/Upper Caves | Entered another Upper Caves area 15035 | -5/Upper Caves | Discovered exit to Factory (range 21) 15040 | -5/Upper Caves | Encountered a Warlord checkpoint 15157 | -5/Upper Caves | Attracted the attention of an 0b10 outpost 15314 | -5/Upper Caves | Spotted B-75 Beast 15329 | -5/Upper Caves | Destroyed B-75 Beast 15381 | -5/Upper Caves | Attracted the attention of an 0b10 checkpoint 15472 | -5/Upper Caves | Discovered new exit (range 14) 15488 | -5/Upper Caves | Identified exit to Zhirov 15488 | -5/Upper Caves | Entered Zhirov 15488 | -5/Zhirov | Discovered new exit (range 3) 15489 | -5/Zhirov | Identified exit to Proximity Caves 15502 | -5/Zhirov | Met Zhirov 15516 | -5/Zhirov | Learned location of Quarantine (-3) 15516 | -5/Zhirov | Learned location of Testing (-2) 15516 | -5/Zhirov | Learned location of Command (-1) 15520 | -5/Zhirov | Zhirov requested help retrieving the SGEMP Prototype 15530 | -5/Zhirov | Found Alien Artifact 15530 | -5/Zhirov | Identified Integrated Dissipator 15530 | -5/Zhirov | Installed Integrated Dissipator, increased core heat dissipation (+20) 15567 | -5/Zhirov | Found Alien Artifact 15593 | -5/Zhirov | Entered Proximity Caves 15643 | -4/Proximity Caves | Spotted B-86 Titan 15666 | -4/Proximity Caves | Destroyed B-86 Titan 15709 | -4/Proximity Caves | Learned Research garrison access intel 15719 | -4/Proximity Caves | Learned Research stockpile data 15790 | -4/Proximity Caves | Discovered exit to Factory (range 7) 15805 | -4/Proximity Caves | Entered Factory 15805 | -4/Factory | Evolved 2 slots: Power x1, Propulsion x1 15938 | -4/Factory | Garrison activated, responded to threat 15995 | -4/Factory | Retrieved Zion intel report: Active Garrisons 16001 | -4/Factory | Retrieved Zion intel report: Unaware Analyses 16002 | -4/Factory | Zion Fire squad teleported in 16043 | -4/Factory | Fabricated Assault Drone Bay (x1) 16128 | -4/Factory | Fabricated Cmb. Airjet (x2) 16301 | -4/Factory | Discovered new exit (range 5) 16302 | -4/Factory | Identified exit to Extension 16302 | -4/Factory | Entered Extension 16379 | -4/Extension | Rescued a captive Derelict 16382 | -4/Extension | Rescued a captive Derelict 16407 | -4/Extension | Zion Hacker squad teleported in 16411 | -4/Extension | Rescued a captive Derelict 16412 | -4/Extension | Rescued a captive Derelict 16414 | -4/Extension | Rescued a captive Derelict 16428 | -4/Extension | Rescued a captive Derelict 16436 | -4/Extension | Rescued a captive Derelict 16552 | -4/Extension | First assault squad dispatched 16696 | -4/Extension | Spotted B-86 Titan 16699 | -4/Extension | Spotted B-86 Titan 16706 | -4/Extension | Destroyed B-86 Titan 16712 | -4/Extension | Destroyed B-86 Titan 16806 | -4/Extension | Rescued a captive Derelict 16806 | -4/Extension | Rescued a captive Derelict 16844 | -4/Extension | Rescued a captive Derelict 16855 | -4/Extension | Rescued A7 16902 | -4/Extension | Zion Heavy squad teleported in 16950 | -4/Extension | Rescued a captive Derelict 16957 | -4/Extension | Rescued a captive Derelict 16968 | -4/Extension | Discovered new exit (range 10) 16969 | -4/Extension | Discovered new exit (range 6) 16972 | -4/Extension | Identified exit to Cetus 16976 | -4/Extension | Identified exit to Research 17034 | -4/Extension | Disrupted transfer network 17036 | -4/Extension | Entered Cetus 17036 | -4/Cetus | Accompanied by 21 allies (A7) 17041 | -4/Cetus | Acquired a Cetus Manufacturing Module code from A7 17041 | -4/Cetus | Spotted Cetus Guard 17041 | -4/Cetus | Spotted Cetus Guard 17043 | -4/Cetus | Spotted Cetus Guard 17048 | -4/Cetus | Spotted Cetus Guard 17063 | -4/Cetus | Allies destroyed Cetus Guard 17064 | -4/Cetus | Allies destroyed Cetus Guard 17094 | -4/Cetus | Started Cetus Manufacturing Module 17098 | -4/Cetus | Escorted A7 to Cetus Mainframe 17109 | -4/Cetus | Discovered new exit (range 22) 17119 | -4/Cetus | Manufactured an Enhanced Grunt 17144 | -4/Cetus | Manufactured an Enhanced Grunt 17169 | -4/Cetus | Manufactured an Enhanced Grunt 17194 | -4/Cetus | Manufactured an Enhanced Grunt 17205 | -4/Cetus | Identified exit to Archives 17214 | -4/Cetus | Build established: Commander-Scout 17219 | -4/Cetus | Manufactured an Enhanced Grunt 17277 | -4/Cetus | Entered Archives 17277 | -4/Archives | Accompanied by 23 allies (A7) 17282 | -4/Archives | Received a hacking code to weaken MAIN.C 17297 | -4/Archives | Discovered new exit (range 22) 17311 | -4/Archives | Discovered exit to Research (range 22) 17311 | -4/Archives | Discovered new exit (range 18) 17393 | -4/Archives | Identified exit to Hub_04(d) 17628 | -4/Archives | Build established: Commander-Skirmisher 19848 | -4/Archives | Entered Hub_04(d) 19848 | -4/Hub_04(d) | Accompanied by 20 allies 19856 | -4/Hub_04(d) | Zion Hover Resupply teleported in 19887 | -4/Hub_04(d) | Zion Light squad teleported in 19912 | -4/Hub_04(d) | Network Hub disabled 19938 | -4/Hub_04(d) | Zion Fire squad teleported in 19957 | -4/Hub_04(d) | Discovered exit to Research (range 21) 19962 | -4/Hub_04(d) | Spotted Lightning 19962 | -4/Hub_04(d) | Spotted Lightning 19962 | -4/Hub_04(d) | Spotted Lightning 19968 | -4/Hub_04(d) | Entered Research 19968 | -3/Research | Evolved 2 slots: Utility x2 19970 | -3/Research | Loaded intel: 4 garrison access locations 20001 | -3/Research | Spotted B-86 Titan 20041 | -3/Research | Destroyed B-86 Titan 20049 | -3/Research | Retrieved Zion intel report: Main Access 20049 | -3/Research | Identified exit to Research 20094 | -3/Research | Zion Light squad teleported in 20116 | -3/Research | Zion Fire squad teleported in 20128 | -3/Research | Spotted B-86 Titan 20161 | -3/Research | Found Antimissile System 20260 | -3/Research | Entered another Research area 20260 | -2/Research | Evolved 2 slots: Utility x2 20282 | -2/Research | Build established: Hacker-Scout 20460 | -2/Research | Discovered new exit (range 5) 20471 | -2/Research | Identified exit to Testing 20472 | -2/Research | Entered Testing 20509 | -2/Testing | Retrieved Zion intel report: Main Access 20509 | -2/Testing | Identified exit to Access 20561 | -2/Testing | Spotted PD-B66NBU3INP 20610 | -2/Testing | Retrieved Zion intel report: Active Garrisons 20712 | -2/Testing | Found Prototype Device 20712 | -2/Testing | Identified Exp. Actuator Array 20804 | -2/Testing | Found Prototype Energy Gun 20804 | -2/Testing | Identified Warp Gun 20847 | -2/Testing | Spotted Striker 20848 | -2/Testing | Spotted Striker 20873 | -2/Testing | Destroyed Striker 20907 | -2/Testing | Destroyed Striker 20917 | -2/Testing | Spotted Alpha 7 20920 | -2/Testing | Stole the SGEMP Prototype 20994 | -2/Testing | Found Prototype Device 20994 | -2/Testing | Identified Exp. Focal Shield 21125 | -2/Testing | Destroyed Alpha 7 21130 | -2/Testing | Found Corrupted Prototype Ballistic Gun 21130 | -2/Testing | Identified Multirail 21131 | -2/Testing | System corruption reached 10% 21222 | -2/Testing | Scanned by Researcher 21248 | -2/Testing | Found Prototype Protection 21248 | -2/Testing | Identified SHELL Armor 21259 | -2/Testing | First assault squad dispatched 21293 | -2/Testing | Identified Transdimensional Reconstructor 21293 | -2/Testing | Warped through subspace 21306 | -2/Testing | Found Corrupted Antimissile System 21327 | -2/Testing | Found Prototype Energy Cannon 21347 | -2/Testing | Spotted PY-AU6JVZ64PW 21347 | -2/Testing | Entered Access 21347 | -1/Access | Evolved 2 slots: Propulsion x1, Utility x1 21348 | -1/Access | Loaded intel: 112 machine locations 21348 | -1/Access | Loaded intel: 91 trap records 21348 | -1/Access | Identified exit to Surface 21348 | -1/Access | Discovered exit to Surface (range 72) 21348 | -1/Access | Identified exit to Command 21348 | -1/Access | Discovered exit to Command (range 185) 21348 | -1/Access | Delivered the SGEMP Prototype to Zhirov 21348 | -1/Access | Zhirov transferred Access data 21392 | -1/Access | Zion Experimental squad teleported in 21508 | -1/Access | Found Exp. Shock Absorption System 21530 | -1/Access | Entered Command 21553 | -1/Command | Retrieved Zion intel report: Guard Positions 21610 | -1/Command | Disengaged cave seal 21610 | -1/Command | Zionites emerged from the dark tunnel 21615 | -1/Command | Retrieved Zion intel report: Prototype Stockpiles 21743 | -1/Command | Retrieved Zion intel report: Unaware Schematics 21746 | -1/Command | Enhanced Grunt warped into view, answering call for help 21752 | -1/Command | Enhanced Grunt warped into view, answering call for help 21776 | -1/Command | Spotted M Guard 21777 | -1/Command | Spotted M Guard 21779 | -1/Command | Spotted Combat Programmer 21779 | -1/Command | Spotted Combat Programmer 21839 | -1/Command | Destroyed Combat Programmer 21844 | -1/Command | Allies destroyed Combat Programmer 21919 | -1/Command | Retrieved Zion intel report: Trap Installations 21922 | -1/Command | Retrieved Zion intel report: Unaware Analyses 21932 | -1/Command | Retrieved Zion intel report: Active Terminals 21937 | -1/Command | Retrieved Zion intel report: Emergency Access 21946 | -1/Command | Found Antimissile System 21954 | -1/Command | Disengaged cave seal 21954 | -1/Command | Zionites emerged from the dark tunnel 22018 | -1/Command | Destroyed M Guard 22038 | -1/Command | Allies destroyed M Guard 22038 | -1/Command | All MAIN.C guards destroyed 22049 | -1/Command | Lost 4 parts (1n2u1w) 22098 | -1/Command | Build established: Scavenger-Mutant 22191 | -1/Command | Met MAIN.C 22191 | -1/Command | Hacked MAIN.C using A7's code 22194 | -1/Command | 0b10 Conduit disabled 22602 | -1/Command | Allies destroyed MAIN.C Shell 22602 | -1/Command | MAIN.C activated Command garrisons 22611 | -1/Command | Zhirov used SGEMP to disable MAIN.C 22689 | -1/Command | Discovered exit to Surface (range 10) 22717 | *** | Escaped! Last Messages --------------- that's a good idea considering another Sigix ship could arrive at any time. So much planning to do and not enough time for experimentation... 22613_ Zhirov warps through subspace. 22613_ Perun warps through subspace. 22613_ Svarog warps through subspace. 22618_ Dropped Hvy. Treads. 22618_ Acquired Imp. Antigrav System. 22620_ Dropped Imp. Medium Treads. 22621_ Acquired 58 matter. 22627_ System corrupted: Component data lost. 22634_ Dropped Enh. Quantum Rifle. 22634_ Acquired Prototype Energy Gun. 22634_ Identified Hvy. Quantum Rifle. 22636_ Dropped Hvy. Quantum Rifle. 22637_ Acquired 10 matter. 22647_ System corrupted: Matter fused (-10). 22663_ System corrupted: Component data lost. 22689_ EXIT=FOUND: SURFACE 22701_ System corrupted: Matter fused (-10). Map ----- +----------------------------------------------------+ | ??????????????????????????#! #?????# " | | ??????????????????????????# #?????# | | ??????????????????????????# ""#?????##### | | ??????????????????????????# ""#?????????? | | ??????????????????????????# ""#?????????? | | ??????????????????????????+ T#?????????? | | ????????????????????????+?# """" ""#?????????? | | ??????????????????????????# """" ""#?????????? | | ??????????????????????????# """" ] ""#?????????? | | ????????????????????????+?# """" #?????????? | | ??????????????????????????# #?????????? | | ??????????????????????????# #?????????? | | ??????????????????????????#+#####/####/#?????????? | | ??????????????????????????????? #??# #?????????? | | ????????????????????????????? #??# #?????????? | | ????????????????????????????#### #??# #?????????? | | ???????????????????????????????# #??# #?????????? | | ???????????????????????????????# ####+###???????? | | ???????????????????????????????# # #???????? | | ???????????????????????????????# + #???????? | | ???????????????????????????????# # |#???????? | | ???????????????????????????????# #! #???????? | | ???????????????????????######### # #???????? | | ???????????????????????# # #???????? | | ???????????????????????#Z + #???????? | | ???????????????????????# @ ######## #???????? | | ???????????????????????# #??????# #???????? | | ???????????????????????#####??????# #???????? | | ??????????????????????????????????# #???????? | | ??????????????????????????????????# #???????? | | ??????????????????????????????????# #???????? | | ??????????????????????????????????########???????? | | ?????????????????????????????????????????????????? | | ?????????????????????????????????????????????????? | | ?????????????????????????????????????????????????? | | ?????????????????????????????????????????????????? | | ?????????????????????????????????????????????????? | | ?????????????????????????????????????????????????? | | ?????????????????????????????????????????????????? | | ?????????????????????????????????????????????????? | | ?????????????????????????????????????????????????? | | ?????????????????????????????????????????????????? | | ?????????????????????????????????????????????????? | | ?????????????????????????????????????????????????? | | ?????????????????????????????????????????????????? | | ?????????????????????????????????????????????????? | | ?????????????????????????????????????????????????? | | ?????????????????????????????????????????????????? | | ?????????????????????????????????????????????????? | | ?????????????????????????????????????????????????? | +----------------------------------------------------+ Best States ------------- Heat Dissipation 72 Coolant Potential 65 Energy Generation 45 Energy Capacity 440 Matter Stores 300 Matter Capacity 300 Sight Range 23 Robot Scan Range 18 Terrain Scan Density 10 Jamming Range 16 Armor Coverage 900 Resistance: KI 50 Resistance: TH 50 Resistance: EX 95 Resistance: EM 35 Resistance: I 20 Resistance: S 20 Resistance: P 20 Utility Shielding 90 Point Defense Rating 240 Phase Shifting 15 Evasion (%) 72 Targeting Accuracy 12 Target Analysis 12 Armor Integrity Analysis 40 Recoil Reduction 4 Energy Filtering 50 Particle Charging 25 Offensive Hacking 52 Defensive Hacking 10 Authchip Count 2 Item Schematics ----------------- Lrg. Storage Unit | -10/Materials | Hacked Sml. Storage Unit | -10/Materials | Hacked Med. Storage Unit | -10/Materials | Hacked Sensor Array | -9/Materials | Hacked Lgt. Assault Rifle | -9/Materials | Hacked Hover Unit | -8/Materials | Scanalyzed Terrain Scanner | -8/Materials | Extracted Wheel | -8/Materials | Extracted Imp. EM Shotgun | -8/Materials | Extracted Imp. Propulsion Shielding | -7/Factory | Scanalyzed Hyp. Gauss Rifle | -7/Factory | Hacked Cmb. Airjet | -7/Factory | Hacked Combat Drone Bay | -7/Data Miner | Free Lgt. Regenerative Plating | -7/Data Miner | Free Cld. Aerolev Unit | -7/Data Miner | Free Exp. Targeting Computer | -7/Data Miner | Free Cld. Plasma Cannon | -7/Data Miner | Free Antigrav System | -7/Data Miner | Free Adv. Salvage Targeting Computer | -7/Data Miner | Free Adv. Plasma Cannon | -7/Data Miner | Free Hvy. Shock Bomb Launcher | -7/Data Miner | Free Wave Gun | -7/Data Miner | Free Lrn. Sensor Array | -7/Data Miner | Free Hardcell Cannon | -7/Data Miner | Free Adv. Powered Armor | -5/Factory | Scanalyzed Assault Drone Bay | -5/Zhirov | Free Exp. Heat Sink | -5/Zhirov | Free Exp. Optical Array | -5/Zhirov | Free Imp. Arc Thrower | -5/Zhirov | Free Med. Regenerative Plating | -2/Testing | Hacked Hvy. Regenerative Plating | -2/Testing | Hacked Exp. Shock Absorption System | -2/Testing | Archive Exp. Q-thruster | -2/Testing | Archive Vibroblade | -2/Testing | Archive Robot Schematics ------------------ G-50 Soldier | -7/Data Miner | Free P-60 Hacker | -7/Data Miner | Free H-66 Slayer | -7/Data Miner | Free M-14 Sweeper | -7/Data Miner | Free L-41 Fighter | -7/Data Miner | Free A-15 Conveyor | -7/Data Miner | Free S-43 Plague | -1/Command | Z-intel K-01 Serf | -1/Command | Z-intel A-02 Transporter | -1/Command | Z-intel Fabricated ------------ Hyp. Gauss Rifle | x2 | -7/Factory | Authchip Hyp. Gauss Rifle | x2 | -7/Factory Cmb. Airjet | x2 | -7/Factory | Authchip Adv. Thermal Shield | x2 | -7/Factory | Preloaded Cmb. Airjet | x2 | -7/Factory | Authchip Combat Drone Bay | x1 | -6/Factory | Authchip Combat Drone Bay | x1 | -6/Factory | Authchip Combat Drone Bay | x1 | -5/Factory | Authchip Lrn. Sensor Array | x1 | -5/Factory | Authchip Assault Drone Bay | x1 | -4/Factory | Authchip Cmb. Airjet | x2 | -4/Factory Alien Tech Used ----------------- Core Expander Integrated Dissipator Transdimensional Reconstructor Achievements -------------- None Challenges ------------ None Game ------ Seed ColdGhostCanceller Manual? 0 Play Time 03:22:43 Cumulative 374.2 hours Start 2022.07.16 @ 15:33:35 End 2022.07.16 @ 21:28:29 Sessions 7 Manual Loads 0 Difficulty Adventurer Special Mode None Game No. 256 Rogue 212 Adventurer 26 Explorer 18 Win Type 0 Total 46 Types 21/1/3/11/2/0/3/1/4 Lore% 83 Gallery% 90 Achievement% 76 Wizard Run 0 Options --------- ASCII 0 Keyboard 0 Movement Numpad Keybinds 0 Fullscreen 2 Font 18/SmallcapsGlow Map View 76x50 Tactical HUD 1 Map Filters NONE Filters NONE Steam 1 RUN: c9d4c130-994a-46c3-9758-f762e1ec30ba